Department Family,Entity,Date Paid,Expense Type,Expense Area,Supplier,Transaction Number,Amount (�),Supplier VAT Registration Number
BEIS,Met Office,2023-10-06,06 ACCOMMODATION,CHIEF FINANCIAL OFFICER,ABOVE THE REST COMMERCIAL CLEANING LTD,484218,565,166969348
BEIS,Met Office,2023-10-11,11 SERVICES,MARKETS,ACCELERATION EMARKETING,484519,5093.21,848940776
BEIS,Met Office,2023-10-18,11 SERVICES,PEOPLE,ACTIVE LEARNING TEAM LTD,484722,2100,-
BEIS,Met Office,2023-10-04,11 SERVICES,MARKETS,ADOPSTAR,484116,1325,115036848
BEIS,Met Office,2023-10-30,03 STAFF COSTS T&S,SERVICES,AIRPORT CAR RENTALS LTD,485028,478,-
BEIS,Met Office,2023-10-06,11 SERVICES,TECHNOLOGY AND CIO,AKAMAI TECHNOLOGIES LTD,484306,4937.28,745091237
BEIS,Met Office,2023-10-06,11 SERVICES,TECHNOLOGY AND CIO,AKAMAI TECHNOLOGIES LTD,484306,25920.75,745091237
BEIS,Met Office,2023-10-04,11 SERVICES,CHIEF FINANCIAL OFFICER,ALLSTAR BUSINESS SOLUTIONS LTD,484080,3648.59,747880191
BEIS,Met Office,2023-10-17,11 SERVICES,CHIEF FINANCIAL OFFICER,ALLSTAR BUSINESS SOLUTIONS LTD,484664,3628.37,747880191
BEIS,Met Office,2023-10-18,11 SERVICES,TECHNOLOGY AND CIO,AMAZON WEB SERVICES EMEA SARL,11210,193851.17,GB 283644382
BEIS,Met Office,2023-10-12,11 SERVICES,CHIEF FINANCIAL OFFICER,ANVIL MOBILE LIMITED,484483,126.2,981686175
BEIS,Met Office,2023-10-09,11 SERVICES,CHIEF FINANCIAL OFFICER,APPLE CENTRAL TAXIS,484351,1776.7,449238720
BEIS,Met Office,2023-10-09,11 SERVICES,SERVICES,APPLIED SATELLITE TECHNOLOGY SYSTEMS LTD,484310,33.42,720108683
BEIS,Met Office,2023-10-10,11 SERVICES,SERVICES,APPLIED SATELLITE TECHNOLOGY SYSTEMS LTD,484311,33.42,720108683
BEIS,Met Office,2023-10-09,11 SERVICES,SERVICES,APPLIED SATELLITE TECHNOLOGY SYSTEMS LTD,484312,66.83,720108683
BEIS,Met Office,2023-10-09,11 SERVICES,SERVICES,APPLIED SATELLITE TECHNOLOGY SYSTEMS LTD,484313,33.42,720108683
BEIS,Met Office,2023-10-09,11 SERVICES,SERVICES,APPLIED SATELLITE TECHNOLOGY SYSTEMS LTD,484314,7181.28,720108683
BEIS,Met Office,2023-10-10,12 INTERNATIONAL,MARKETS,APPLIED SATELLITE TECHNOLOGY SYSTEMS LTD,484315,33.42,720108683
BEIS,Met Office,2023-10-09,11 SERVICES,SERVICES,APPLIED SATELLITE TECHNOLOGY SYSTEMS LTD,484316,129.29,720108683
BEIS,Met Office,2023-10-10,11 SERVICES,SERVICES,APPLIED SATELLITE TECHNOLOGY SYSTEMS LTD,484319,110.78,720108683
BEIS,Met Office,2023-10-10,11 SERVICES,SERVICES,APPLIED SATELLITE TECHNOLOGY SYSTEMS LTD,484320,453.77,720108683
BEIS,Met Office,2023-10-09,11 SERVICES,SERVICES,APPLIED SATELLITE TECHNOLOGY SYSTEMS LTD,484321,3364.86,720108683
BEIS,Met Office,2023-10-18,11 SERVICES,SERVICES,ARNOLD CLARK FINANCE LIMITED,484698,4673.16,GB334331879
BEIS,Met Office,2023-10-20,13 MISCELLANEOUS,SERVICES,AUTOMATED DOCUMENT SERVICES LTD,484754,16998.8,105353449
BEIS,Met Office,2023-10-25,03 STAFF COSTS T&S,SERVICES,AVIS BUDGET PAYLESS,25194,465.58,-
BEIS,Met Office,2023-10-25,03 STAFF COSTS T&S,SERVICES,AVIS BUDGET PAYLESS,25195,465.58,-
BEIS,Met Office,2023-10-25,03 STAFF COSTS T&S,SERVICES,AVIS BUDGET PAYLESS,25196,931.16,-
BEIS,Met Office,2023-10-03,11 SERVICES,PROGRAMMES,BAE SYSTEMS APPLIED INTELLIGENCE LIMITED,484035,22097,GB641407169
BEIS,Met Office,2023-10-03,11 SERVICES,PROGRAMMES,BAE SYSTEMS APPLIED INTELLIGENCE LIMITED,484036,7574,GB641407169
BEIS,Met Office,2023-10-03,11 SERVICES,PROGRAMMES,BAE SYSTEMS APPLIED INTELLIGENCE LIMITED,484037,7818.75,GB641407169
BEIS,Met Office,2023-10-03,11 SERVICES,PROGRAMMES,BAE SYSTEMS APPLIED INTELLIGENCE LIMITED,484037,7035,GB641407169
BEIS,Met Office,2023-10-03,11 SERVICES,PROGRAMMES,BAE SYSTEMS APPLIED INTELLIGENCE LIMITED,484037,21515.5,GB641407169
BEIS,Met Office,2023-10-03,11 SERVICES,PROGRAMMES,BAE SYSTEMS APPLIED INTELLIGENCE LIMITED,484037,16884,GB641407169
BEIS,Met Office,2023-10-03,11 SERVICES,PROGRAMMES,BAE SYSTEMS APPLIED INTELLIGENCE LIMITED,484037,2824,GB641407169
BEIS,Met Office,2023-10-03,11 SERVICES,PROGRAMMES,BAE SYSTEMS APPLIED INTELLIGENCE LIMITED,484037,8442,GB641407169
BEIS,Met Office,2023-10-03,11 SERVICES,PROGRAMMES,BAE SYSTEMS APPLIED INTELLIGENCE LIMITED,484037,16884,GB641407169
BEIS,Met Office,2023-10-03,11 SERVICES,PROGRAMMES,BAE SYSTEMS APPLIED INTELLIGENCE LIMITED,484037,12194,GB641407169
BEIS,Met Office,2023-10-03,11 SERVICES,PROGRAMMES,BAE SYSTEMS APPLIED INTELLIGENCE LIMITED,484037,15119,GB641407169
BEIS,Met Office,2023-10-03,11 SERVICES,PROGRAMMES,BAE SYSTEMS APPLIED INTELLIGENCE LIMITED,484037,4690,GB641407169
BEIS,Met Office,2023-10-03,11 SERVICES,PROGRAMMES,BAE SYSTEMS APPLIED INTELLIGENCE LIMITED,484037,15119,GB641407169
BEIS,Met Office,2023-10-24,11 SERVICES,PROGRAMMES,BAE SYSTEMS APPLIED INTELLIGENCE LIMITED,484819,33358.5,GB641407169
BEIS,Met Office,2023-10-24,11 SERVICES,PROGRAMMES,BAE SYSTEMS APPLIED INTELLIGENCE LIMITED,484820,13777.5,GB641407169
BEIS,Met Office,2023-10-24,11 SERVICES,PROGRAMMES,BAE SYSTEMS APPLIED INTELLIGENCE LIMITED,484821,22512,GB641407169
BEIS,Met Office,2023-10-24,11 SERVICES,PROGRAMMES,BAE SYSTEMS APPLIED INTELLIGENCE LIMITED,484822,21574,GB641407169
BEIS,Met Office,2023-10-24,11 SERVICES,PROGRAMMES,BAE SYSTEMS APPLIED INTELLIGENCE LIMITED,484823,27912,GB641407169
BEIS,Met Office,2023-10-24,11 SERVICES,TECHNOLOGY AND CIO,BAE SYSTEMS APPLIED INTELLIGENCE LIMITED,484824,22512,GB641407169
BEIS,Met Office,2023-10-24,11 SERVICES,PROGRAMMES,BAE SYSTEMS APPLIED INTELLIGENCE LIMITED,484825,10820,GB641407169
BEIS,Met Office,2023-10-30,11 SERVICES,PROGRAMMES,BAE SYSTEMS APPLIED INTELLIGENCE LIMITED,484942,6821.5,GB641407169
BEIS,Met Office,2023-10-30,06 ACCOMMODATION,CHIEF FINANCIAL OFFICER,BAE SYSTEMS MARINE LTD,484849,120,641407169
BEIS,Met Office,2023-10-04,13 MISCELLANEOUS,SCIENCE,Bangor University,484217,1000,GB728885674
BEIS,Met Office,2023-10-04,13 MISCELLANEOUS,CHIEF FINANCIAL OFFICER,BANNER GROUP LIMITED,484117,27.02,GB391085740
BEIS,Met Office,2023-10-04,13 MISCELLANEOUS,CHIEF FINANCIAL OFFICER,BANNER GROUP LIMITED,484118,19.07,GB391085740
BEIS,Met Office,2023-10-31,13 MISCELLANEOUS,PROGRAMMES,BANNER GROUP LIMITED,485035,21.61,GB391085740
BEIS,Met Office,2023-10-31,13 MISCELLANEOUS,PROGRAMMES,BANNER GROUP LIMITED,485036,79.97,GB391085740
BEIS,Met Office,2023-10-31,13 MISCELLANEOUS,PROGRAMMES,BANNER GROUP LIMITED,485037,26.12,GB391085740
BEIS,Met Office,2023-10-20,13 MISCELLANEOUS,TECHNOLOGY AND CIO,"BCS, THE CHARTERED INSTITUTE FOR IT",484309,14900,GB18168724
BEIS,Met Office,2023-10-06,06 ACCOMMODATION,CHIEF FINANCIAL OFFICER,Belfast International Airport Ltd,484135,24491.3,617777601
BEIS,Met Office,2023-10-10,11 SERVICES,SERVICES,BENTLEY TELECOM LTD (was Bentley Walker),484439,787.5,107995930
BEIS,Met Office,2023-10-06,06 ACCOMMODATION,CHIEF FINANCIAL OFFICER,BIDVEST NOONAN UK LTD,484194,191.01,GB847176988
BEIS,Met Office,2023-10-12,06 ACCOMMODATION,CHIEF FINANCIAL OFFICER,BIDVEST NOONAN UK LTD,484467,1111.97,GB847176988
BEIS,Met Office,2023-10-11,06 ACCOMMODATION,CHIEF FINANCIAL OFFICER,BIDVEST NOONAN UK LTD,484468,501.58,GB847176988
BEIS,Met Office,2023-10-18,06 ACCOMMODATION,CHIEF FINANCIAL OFFICER,BIDVEST NOONAN UK LTD,484669,480,GB847176988
BEIS,Met Office,2023-10-11,11 SERVICES,PROGRAMMES,BITPOD LIMITED,484516,1742.21,124 9359 03
BEIS,Met Office,2023-10-11,11 SERVICES,PROGRAMMES,BJSS LIMITED,484449,79587.5,613295452
BEIS,Met Office,2023-10-12,11 SERVICES,TECHNOLOGY AND CIO,BJSS LIMITED,484450,4375,613295452
BEIS,Met Office,2023-10-12,11 SERVICES,PROGRAMMES,BJSS LIMITED,484451,32950,613295452
BEIS,Met Office,2023-10-10,11 SERVICES,PROGRAMMES,BJSS LIMITED,484452,87575,613295452
BEIS,Met Office,2023-10-11,11 SERVICES,MARKETS,BJSS LIMITED,484454,562.5,613295452
BEIS,Met Office,2023-10-10,11 SERVICES,PROGRAMMES,BJSS LIMITED,484455,25625,613295452
BEIS,Met Office,2023-10-10,11 SERVICES,TECHNOLOGY AND CIO,BJSS LIMITED,484456,2714,613295452
BEIS,Met Office,2023-10-11,11 SERVICES,PROGRAMMES,BJSS LIMITED,484482,87210,613295452
BEIS,Met Office,2023-10-12,11 SERVICES,TECHNOLOGY AND CIO,BJSS LIMITED,484489,-3750,613295452
BEIS,Met Office,2023-10-12,11 SERVICES,PROGRAMMES,BJSS LIMITED,484532,3750,613295452
BEIS,Met Office,2023-10-19,11 SERVICES,TECHNOLOGY AND CIO,BJSS LIMITED,484696,10000,613295452
BEIS,Met Office,2023-10-06,11 SERVICES,MARKETS,BMG RESEARCH LTD,481205,8695,580 6606 32
BEIS,Met Office,2023-10-06,11 SERVICES,MARKETS,BMG RESEARCH LTD,481738,8695,580 6606 32
BEIS,Met Office,2023-10-25,11 SERVICES,SERVICES,Boc Ltd,484074,13291.98,226556555
BEIS,Met Office,2023-10-10,08 SOFTWARE LICENCES,TECHNOLOGY AND CIO,BOXXE,484466,7619.3,734245248
BEIS,Met Office,2023-10-13,08 SOFTWARE LICENCES,TECHNOLOGY AND CIO,BOXXE,484624,30477.2,734245248
BEIS,Met Office,2023-10-27,08 SOFTWARE LICENCES,TECHNOLOGY AND CIO,BOXXE,485005,2084.72,734245248
BEIS,Met Office,2023-10-04,06 ACCOMMODATION,CHIEF FINANCIAL OFFICER,BROXTOWE BOROUGH COUNCIL,484136,278.2,118033013
BEIS,Met Office,2023-10-02,11 SERVICES,CHIEF FINANCIAL OFFICER,BT GLOBAL SERVICES,483817,5778.86,245719348
BEIS,Met Office,2023-10-26,11 SERVICES,CHIEF FINANCIAL OFFICER,BT GLOBAL SERVICES,484663,5778.86,245719348
BEIS,Met Office,2023-10-20,11 SERVICES,CHIEF FINANCIAL OFFICER,BT GLOBAL SERVICES,484697,771.07,245719348
BEIS,Met Office,2023-10-06,11 SERVICES,CHIEF FINANCIAL OFFICER,BT plc,484187,7389.53,245719348
BEIS,Met Office,2023-10-18,11 SERVICES,SCIENCE,Bureau Of Meteorology,483891,2636.5,-
BEIS,Met Office,2023-10-19,06 ACCOMMODATION,CHIEF FINANCIAL OFFICER,BUSINESS STREAM,484689,279.23,945850885
BEIS,Met Office,2023-10-25,06 ACCOMMODATION,CHIEF FINANCIAL OFFICER,BUSINESS SUPPORT CENTRE LTD,484802,60.9,927365208
BEIS,Met Office,2023-10-30,11 SERVICES,CHIEF FINANCIAL OFFICER,CABINET OFFICE - COF LEAD ACCOUNT,482231,64520,-
BEIS,Met Office,2023-10-30,11 SERVICES,CHIEF FINANCIAL OFFICER,CABINET OFFICE - COF LEAD ACCOUNT,482232,-64520,-
BEIS,Met Office,2023-10-30,11 SERVICES,SCIENCE,CABINET OFFICE - COF LEAD ACCOUNT,485023,2400,-
BEIS,Met Office,2023-10-30,11 SERVICES,SERVICES,CABINET OFFICE - COF LEAD ACCOUNT,485023,1200,-
BEIS,Met Office,2023-10-16,06 ACCOMMODATION,CHIEF FINANCIAL OFFICER,CALOR GAS LIMITED,484583,49.18,207610984
BEIS,Met Office,2023-10-16,06 ACCOMMODATION,CHIEF FINANCIAL OFFICER,CALOR GAS LIMITED,484584,137,207610984
BEIS,Met Office,2023-10-19,06 ACCOMMODATION,CHIEF FINANCIAL OFFICER,CALOR GAS LIMITED,484690,53.86,207610984
BEIS,Met Office,2023-10-18,06 ACCOMMODATION,CHIEF FINANCIAL OFFICER,CALOR GAS LIMITED,484691,34.25,207610984
BEIS,Met Office,2023-10-06,13 MISCELLANEOUS,CHIEF FINANCIAL OFFICER,CARDIFF EXECUTIVE CENTRE LTD,484193,5.39,864497378
BEIS,Met Office,2023-10-06,06 ACCOMMODATION,CHIEF FINANCIAL OFFICER,CARDIFF EXECUTIVE CENTRE LTD,484307,2470,864497378
BEIS,Met Office,2023-10-12,11 SERVICES,SERVICES,CARDIFF SCHOOL OF HEALTH SCIENCES,484357,4633.2,542915736
BEIS,Met Office,2023-10-04,08 SOFTWARE LICENCES,PEOPLE,CATALYST IT,484111,2270.82,978169262
BEIS,Met Office,2023-10-10,11 SERVICES,CHIEF FINANCIAL OFFICER,CBRE LTD,484442,2532.55,GB 736 3179 23
BEIS,Met Office,2023-10-18,11 SERVICES,CHIEF FINANCIAL OFFICER,CBRE LTD,484705,125000,GB 736 3179 23
BEIS,Met Office,2023-10-10,06 ACCOMMODATION,CHIEF FINANCIAL OFFICER,CBRE MANAGED SERVICES LTD,484409,13575.47,853936883
BEIS,Met Office,2023-10-10,06 ACCOMMODATION,CHIEF FINANCIAL OFFICER,CBRE MANAGED SERVICES LTD,484410,4765.44,853936883
BEIS,Met Office,2023-10-25,06 ACCOMMODATION,CHIEF FINANCIAL OFFICER,CBRE MANAGED SERVICES LTD,484886,27661.84,853936883
BEIS,Met Office,2023-10-25,06 ACCOMMODATION,CHIEF FINANCIAL OFFICER,CBRE MANAGED SERVICES LTD,484887,5562.08,853936883
BEIS,Met Office,2023-10-25,FIXTURE & FITTINGS,CHIEF FINANCIAL OFFICER,CBRE MANAGED SERVICES LTD,484888,16308.71,853936883
BEIS,Met Office,2023-10-26,07 EQUIPMENT,TECHNOLOGY AND CIO,CDW LTD,484879,609.06,902194939
BEIS,Met Office,2023-10-26,13 MISCELLANEOUS,TECHNOLOGY AND CIO,CDW LTD,484879,16.47,902194939
BEIS,Met Office,2023-10-26,10 EQUIPMENT MAINTENANCE,TECHNOLOGY AND CIO,CDW LTD,484917,12178.9,902194939
BEIS,Met Office,2023-10-18,08 SOFTWARE LICENCES,CHIEF FINANCIAL OFFICER,CEMAR,484694,850,915042161
BEIS,Met Office,2023-10-06,11 SERVICES,PROGRAMMES,Cgi It Uk Limited,484086,37693,232615194
BEIS,Met Office,2023-10-06,11 SERVICES,PROGRAMMES,Cgi It Uk Limited,484087,28558,232615194
BEIS,Met Office,2023-10-06,11 SERVICES,PROGRAMMES,Cgi It Uk Limited,484088,79239,232615194
BEIS,Met Office,2023-10-06,03 STAFF COSTS T&S,SERVICES,CHARLIE'S TRAVEL LTD,484237,1474.44,783848277
BEIS,Met Office,2023-10-06,03 STAFF COSTS T&S,SERVICES,CHARLIE'S TRAVEL LTD,484237,167.5,783848277
BEIS,Met Office,2023-10-06,03 STAFF COSTS T&S,SERVICES,CHARLIE'S TRAVEL LTD,484237,283.3,783848277
BEIS,Met Office,2023-10-06,03 STAFF COSTS T&S,SERVICES,CHARLIE'S TRAVEL LTD,484237,349.6,783848277
BEIS,Met Office,2023-10-26,03 STAFF COSTS T&S,SERVICES,CHARLIE'S TRAVEL LTD,484915,52.5,783848277
BEIS,Met Office,2023-10-20,FIXTURE & FITTINGS,CHIEF FINANCIAL OFFICER,CHRISALIS REFURBISHMENT LTD,484767,45586,920904345
BEIS,Met Office,2023-10-11,10 EQUIPMENT MAINTENANCE,SERVICES,CIMEL ELECTRONIQUE,25273,3551.61,FR89662017201
BEIS,Met Office,2023-10-06,08 SOFTWARE LICENCES,SERVICES,CIVICA UK LIMITED,484207,11381.25,391171065
BEIS,Met Office,2023-10-16,11 SERVICES,PEOPLE,CIVICA UK LIMITED,484535,7503.5,391171065
BEIS,Met Office,2023-10-04,07 EQUIPMENT,SERVICES,CLARKE LANE ENGINEERING LTD,484195,20,412068487
BEIS,Met Office,2023-10-04,07 EQUIPMENT,SERVICES,CLARKE LANE ENGINEERING LTD,484195,186.4,412068487
BEIS,Met Office,2023-10-11,11 SERVICES,TECHNOLOGY AND CIO,CLOUDREACH EUROPE LIMITED,484521,3556.35,978187168
BEIS,Met Office,2023-10-12,11 SERVICES,TECHNOLOGY AND CIO,CLOUDREACH EUROPE LIMITED,484543,5150,978187168
BEIS,Met Office,2023-10-12,11 SERVICES,SERVICES,CLOUDREACH EUROPE LIMITED,484544,7300,978187168
BEIS,Met Office,2023-10-11,11 SERVICES,SERVICES,COLLECTE LOCALISATION SATELLITES (C.L.S.),25180,194.11,FR95338034390
BEIS,Met Office,2023-10-11,11 SERVICES,SERVICES,COLLECTE LOCALISATION SATELLITES (C.L.S.),25181,11874.79,FR95338034390
BEIS,Met Office,2023-10-11,13 MISCELLANEOUS,SERVICES,COLLECTE LOCALISATION SATELLITES (C.L.S.),25182,113.1,FR95338034390
BEIS,Met Office,2023-10-11,11 SERVICES,SERVICES,COLLECTE LOCALISATION SATELLITES (C.L.S.),25183,3956.67,FR95338034390
BEIS,Met Office,2023-10-06,11 SERVICES,CHIEF FINANCIAL OFFICER,COMMERCIAL TRANSFER LTD,484182,9650,891436990
BEIS,Met Office,2023-10-13,08 SOFTWARE LICENCES,TECHNOLOGY AND CIO,COMPUTACENTER (UK) LTD,480799,4759.7,490334648
BEIS,Met Office,2023-10-13,08 SOFTWARE LICENCES,TECHNOLOGY AND CIO,COMPUTACENTER (UK) LTD,480799,216.67,490334648
BEIS,Met Office,2023-10-13,10 EQUIPMENT MAINTENANCE,TECHNOLOGY AND CIO,COMPUTACENTER (UK) LTD,480799,20.59,490334648
BEIS,Met Office,2023-10-13,08 SOFTWARE LICENCES,TECHNOLOGY AND CIO,COMPUTACENTER (UK) LTD,480862,74.95,490334648
BEIS,Met Office,2023-10-13,08 SOFTWARE LICENCES,TECHNOLOGY AND CIO,COMPUTACENTER (UK) LTD,480862,216.67,490334648
BEIS,Met Office,2023-10-13,10 EQUIPMENT MAINTENANCE,TECHNOLOGY AND CIO,COMPUTACENTER (UK) LTD,480862,1081.26,490334648
BEIS,Met Office,2023-10-13,08 SOFTWARE LICENCES,TECHNOLOGY AND CIO,COMPUTACENTER (UK) LTD,481039,74.95,490334648
BEIS,Met Office,2023-10-13,08 SOFTWARE LICENCES,TECHNOLOGY AND CIO,COMPUTACENTER (UK) LTD,481039,7126.82,490334648
BEIS,Met Office,2023-10-13,10 EQUIPMENT MAINTENANCE,TECHNOLOGY AND CIO,COMPUTACENTER (UK) LTD,481039,20.59,490334648
BEIS,Met Office,2023-10-09,08 SOFTWARE LICENCES,TECHNOLOGY AND CIO,COMPUTACENTER (UK) LTD,483077,44484.29,490334648
BEIS,Met Office,2023-10-09,08 SOFTWARE LICENCES,TECHNOLOGY AND CIO,COMPUTACENTER (UK) LTD,483077,10216.31,490334648
BEIS,Met Office,2023-10-09,08 SOFTWARE LICENCES,TECHNOLOGY AND CIO,COMPUTACENTER (UK) LTD,483077,31807.21,490334648
BEIS,Met Office,2023-10-09,08 SOFTWARE LICENCES,TECHNOLOGY AND CIO,COMPUTACENTER (UK) LTD,483077,82211.07,490334648
BEIS,Met Office,2023-10-09,08 SOFTWARE LICENCES,TECHNOLOGY AND CIO,COMPUTACENTER (UK) LTD,483077,319.98,490334648
BEIS,Met Office,2023-10-09,08 SOFTWARE LICENCES,TECHNOLOGY AND CIO,COMPUTACENTER (UK) LTD,483077,31942.14,490334648
BEIS,Met Office,2023-10-09,08 SOFTWARE LICENCES,TECHNOLOGY AND CIO,COMPUTACENTER (UK) LTD,483077,80535,490334648
BEIS,Met Office,2023-10-09,08 SOFTWARE LICENCES,TECHNOLOGY AND CIO,COMPUTACENTER (UK) LTD,483077,332299,490334648
BEIS,Met Office,2023-10-09,08 SOFTWARE LICENCES,TECHNOLOGY AND CIO,COMPUTACENTER (UK) LTD,483077,129194,490334648
BEIS,Met Office,2023-10-09,08 SOFTWARE LICENCES,TECHNOLOGY AND CIO,COMPUTACENTER (UK) LTD,483077,185607.2,490334648
BEIS,Met Office,2023-10-02,11 SERVICES,TECHNOLOGY AND CIO,COMPUTACENTER (UK) LTD,484042,7587.18,490334648
BEIS,Met Office,2023-10-04,07 EQUIPMENT,TECHNOLOGY AND CIO,COMPUTACENTER (UK) LTD,484093,1203.84,490334648
BEIS,Met Office,2023-10-04,07 EQUIPMENT,TECHNOLOGY AND CIO,COMPUTACENTER (UK) LTD,484144,6788.65,490334648
BEIS,Met Office,2023-10-10,07 EQUIPMENT,TECHNOLOGY AND CIO,COMPUTACENTER (UK) LTD,484344,959.18,490334648
BEIS,Met Office,2023-10-16,07 EQUIPMENT,TECHNOLOGY AND CIO,COMPUTACENTER (UK) LTD,484533,789.25,490334648
BEIS,Met Office,2023-10-17,07 EQUIPMENT,TECHNOLOGY AND CIO,COMPUTACENTER (UK) LTD,484623,117.92,490334648
BEIS,Met Office,2023-10-18,07 EQUIPMENT,TECHNOLOGY AND CIO,COMPUTACENTER (UK) LTD,484693,556.1,490334648
BEIS,Met Office,2023-10-23,07 EQUIPMENT,TECHNOLOGY AND CIO,COMPUTACENTER (UK) LTD,484807,7326,490334648
BEIS,Met Office,2023-10-26,07 EQUIPMENT,SERVICES,COMPUTACENTER (UK) LTD,484918,5627.26,490334648
BEIS,Met Office,2023-10-27,10 EQUIPMENT MAINTENANCE,TECHNOLOGY AND CIO,COMPUTACENTER (UK) LTD,484968,43184.88,490334648
BEIS,Met Office,2023-10-27,10 EQUIPMENT MAINTENANCE,TECHNOLOGY AND CIO,COMPUTACENTER (UK) LTD,484982,4481.82,490334648
BEIS,Met Office,2023-10-30,07 EQUIPMENT,SERVICES,COMPUTACENTER (UK) LTD,485039,993.2,490334648
BEIS,Met Office,2023-10-30,07 EQUIPMENT,TECHNOLOGY AND CIO,COMPUTACENTER (UK) LTD,485040,4647,490334648
BEIS,Met Office,2023-10-10,FIXTURE & FITTINGS,CHIEF FINANCIAL OFFICER,D&G OFFICE SERVICES LTD,484147,92,272997547
BEIS,Met Office,2023-10-10,FIXTURE & FITTINGS,CHIEF FINANCIAL OFFICER,D&G OFFICE SERVICES LTD,484147,985,272997547
BEIS,Met Office,2023-10-10,FIXTURE & FITTINGS,CHIEF FINANCIAL OFFICER,D&G OFFICE SERVICES LTD,484147,2076,272997547
BEIS,Met Office,2023-10-10,FIXTURE & FITTINGS,CHIEF FINANCIAL OFFICER,D&G OFFICE SERVICES LTD,484147,1728,272997547
BEIS,Met Office,2023-10-10,FIXTURE & FITTINGS,CHIEF FINANCIAL OFFICER,D&G OFFICE SERVICES LTD,484147,58.5,272997547
BEIS,Met Office,2023-10-10,FIXTURE & FITTINGS,CHIEF FINANCIAL OFFICER,D&G OFFICE SERVICES LTD,484147,200,272997547
BEIS,Met Office,2023-10-10,FIXTURE & FITTINGS,CHIEF FINANCIAL OFFICER,D&G OFFICE SERVICES LTD,484147,648,272997547
BEIS,Met Office,2023-10-10,FIXTURE & FITTINGS,CHIEF FINANCIAL OFFICER,D&G OFFICE SERVICES LTD,484147,120,272997547
BEIS,Met Office,2023-10-10,FIXTURE & FITTINGS,CHIEF FINANCIAL OFFICER,D&G OFFICE SERVICES LTD,484147,100,272997547
BEIS,Met Office,2023-10-05,11 SERVICES,SERVICES,DAVID HIDE ASTHMA & ALLERGY RES CENTRE,484190,4633.2,NOTVATREGD
BEIS,Met Office,2023-10-10,03 STAFF COSTS T&S,SERVICES,DBS FINANCE RECEIPTS CTS,484441,5008,888805068
BEIS,Met Office,2023-10-24,03 STAFF COSTS T&S,SERVICES,DBS FINANCE RECEIPTS CTS,484817,7050,888805068
BEIS,Met Office,2023-10-31,08 SOFTWARE LICENCES,OFFICE OF THE CEO,DILIGENT BOARDBOOKS LIMITED,481187,43166.24,929451011
BEIS,Met Office,2023-10-23,11 SERVICES,SERVICES,DOT SOFTWARE LTD,484801,3912,701022805
BEIS,Met Office,2023-10-04,13 MISCELLANEOUS,CHIEF FINANCIAL OFFICER,DWYFOR COFFEE COMPANY LTD,483433,-31.76,559811116
BEIS,Met Office,2023-10-04,13 MISCELLANEOUS,CHIEF FINANCIAL OFFICER,DWYFOR COFFEE COMPANY LTD,484089,32.6,559811116
BEIS,Met Office,2023-10-31,08 SOFTWARE LICENCES,TECHNOLOGY AND CIO,DXC TECHNOLOGY,484851,14583.6,GB432995915
BEIS,Met Office,2023-10-31,08 SOFTWARE LICENCES,TECHNOLOGY AND CIO,DXC TECHNOLOGY,484851,7160.4,GB432995915
BEIS,Met Office,2023-10-04,13 MISCELLANEOUS,CHIEF FINANCIAL OFFICER,EAST ANGLIAN WATER COOLER CO,484104,40.4,676668178
BEIS,Met Office,2023-10-25,11 SERVICES,MARKETS,ECMWF,21786,-6591.79,NOTVATREG
BEIS,Met Office,2023-10-25,11 SERVICES,MARKETS,ECMWF,21787,-6591.79,NOTVATREG
BEIS,Met Office,2023-10-25,11 SERVICES,MARKETS,ECMWF,25128,3444.72,NOTVATREG
BEIS,Met Office,2023-10-25,11 SERVICES,MARKETS,ECMWF,25129,1899.06,NOTVATREG
BEIS,Met Office,2023-10-25,11 SERVICES,MARKETS,ECMWF,25198,31473.23,NOTVATREG
BEIS,Met Office,2023-10-25,11 SERVICES,MARKETS,ECMWF,25199,1151.27,NOTVATREG
BEIS,Met Office,2023-10-25,11 SERVICES,MARKETS,ECMWF,25200,30169.09,NOTVATREG
BEIS,Met Office,2023-10-25,11 SERVICES,MARKETS,ECMWF,25201,20868.13,NOTVATREG
BEIS,Met Office,2023-10-25,11 SERVICES,MARKETS,ECMWF,25202,56.09,NOTVATREG
BEIS,Met Office,2023-10-25,11 SERVICES,MARKETS,ECMWF,25203,1123.69,NOTVATREG
BEIS,Met Office,2023-10-25,11 SERVICES,MARKETS,ECMWF,25204,24609.91,NOTVATREG
BEIS,Met Office,2023-10-25,11 SERVICES,MARKETS,ECMWF,25205,13636.66,NOTVATREG
BEIS,Met Office,2023-10-25,11 SERVICES,MARKETS,ECMWF,25206,1100.06,NOTVATREG
BEIS,Met Office,2023-10-25,11 SERVICES,MARKETS,ECMWF,25207,36363.75,NOTVATREG
BEIS,Met Office,2023-10-25,11 SERVICES,MARKETS,ECMWF,25208,368.86,NOTVATREG
BEIS,Met Office,2023-10-25,11 SERVICES,MARKETS,ECMWF,25209,1006.67,NOTVATREG
BEIS,Met Office,2023-10-25,11 SERVICES,MARKETS,ECMWF,25210,978.57,NOTVATREG
BEIS,Met Office,2023-10-25,11 SERVICES,MARKETS,ECMWF,25211,1561.74,NOTVATREG
BEIS,Met Office,2023-10-25,11 SERVICES,MARKETS,ECMWF,25212,1032.44,NOTVATREG
BEIS,Met Office,2023-10-25,11 SERVICES,MARKETS,ECMWF,25213,-14059.38,NOTVATREG
BEIS,Met Office,2023-10-25,11 SERVICES,MARKETS,ECMWF,25214,1143.17,NOTVATREG
BEIS,Met Office,2023-10-25,11 SERVICES,MARKETS,ECMWF,25215,24505.97,NOTVATREG
BEIS,Met Office,2023-10-25,11 SERVICES,MARKETS,ECMWF,25216,9783.25,NOTVATREG
BEIS,Met Office,2023-10-25,11 SERVICES,MARKETS,ECMWF,25217,19980.91,NOTVATREG
BEIS,Met Office,2023-10-25,11 SERVICES,MARKETS,ECMWF,25218,3956.53,NOTVATREG
BEIS,Met Office,2023-10-25,11 SERVICES,MARKETS,ECMWF,25219,5732.68,NOTVATREG
BEIS,Met Office,2023-10-25,11 SERVICES,MARKETS,ECMWF,25220,32797.68,NOTVATREG
BEIS,Met Office,2023-10-25,11 SERVICES,MARKETS,ECMWF,25221,10263,NOTVATREG
BEIS,Met Office,2023-10-25,11 SERVICES,MARKETS,ECMWF,25222,467.83,NOTVATREG
BEIS,Met Office,2023-10-25,11 SERVICES,MARKETS,ECMWF,25223,10263,NOTVATREG
BEIS,Met Office,2023-10-25,11 SERVICES,MARKETS,ECMWF,25224,14317.18,NOTVATREG
BEIS,Met Office,2023-10-25,11 SERVICES,MARKETS,ECMWF,25225,1459,NOTVATREG
BEIS,Met Office,2023-10-25,11 SERVICES,MARKETS,ECMWF,25226,499.82,NOTVATREG
BEIS,Met Office,2023-10-25,11 SERVICES,MARKETS,ECMWF,25227,12089.07,NOTVATREG
BEIS,Met Office,2023-10-25,11 SERVICES,MARKETS,ECMWF,25228,737.33,NOTVATREG
BEIS,Met Office,2023-10-25,11 SERVICES,MARKETS,ECMWF,25229,12253,NOTVATREG
BEIS,Met Office,2023-10-25,11 SERVICES,MARKETS,ECMWF,25230,1581.81,NOTVATREG
BEIS,Met Office,2023-10-25,11 SERVICES,MARKETS,ECMWF,25231,457.56,NOTVATREG
BEIS,Met Office,2023-10-25,11 SERVICES,MARKETS,ECMWF,25232,1032.44,NOTVATREG
BEIS,Met Office,2023-10-25,11 SERVICES,MARKETS,ECMWF,25234,338.97,NOTVATREG
BEIS,Met Office,2023-10-25,11 SERVICES,MARKETS,ECMWF,25235,2026.42,NOTVATREG
BEIS,Met Office,2023-10-25,11 SERVICES,MARKETS,ECMWF,25236,36363.75,NOTVATREG
BEIS,Met Office,2023-10-25,11 SERVICES,MARKETS,ECMWF,25237,108.23,NOTVATREG
BEIS,Met Office,2023-10-25,11 SERVICES,MARKETS,ECMWF,25238,31473.23,NOTVATREG
BEIS,Met Office,2023-10-25,11 SERVICES,MARKETS,ECMWF,25239,10263,NOTVATREG
BEIS,Met Office,2023-10-25,11 SERVICES,MARKETS,ECMWF,25240,1029.21,NOTVATREG
BEIS,Met Office,2023-10-25,11 SERVICES,MARKETS,ECMWF,25241,5489.44,NOTVATREG
BEIS,Met Office,2023-10-25,11 SERVICES,MARKETS,ECMWF,25242,51.74,NOTVATREG
BEIS,Met Office,2023-10-25,11 SERVICES,MARKETS,ECMWF,25243,24609.91,NOTVATREG
BEIS,Met Office,2023-10-25,11 SERVICES,MARKETS,ECMWF,25244,4158.34,NOTVATREG
BEIS,Met Office,2023-10-25,11 SERVICES,MARKETS,ECMWF,25245,21953.01,NOTVATREG
BEIS,Met Office,2023-10-25,11 SERVICES,MARKETS,ECMWF,25246,21953.01,NOTVATREG
BEIS,Met Office,2023-10-25,11 SERVICES,MARKETS,ECMWF,25247,24574.4,NOTVATREG
BEIS,Met Office,2023-10-25,11 SERVICES,MARKETS,ECMWF,25248,9837.74,NOTVATREG
BEIS,Met Office,2023-10-25,11 SERVICES,MARKETS,ECMWF,25249,451.08,NOTVATREG
BEIS,Met Office,2023-10-25,11 SERVICES,MARKETS,ECMWF,25250,10263,NOTVATREG
BEIS,Met Office,2023-10-25,11 SERVICES,MARKETS,ECMWF,25251,48796.54,NOTVATREG
BEIS,Met Office,2023-10-25,11 SERVICES,MARKETS,ECMWF,25252,4960.49,NOTVATREG
BEIS,Met Office,2023-10-25,11 SERVICES,MARKETS,ECMWF,25253,36363.75,NOTVATREG
BEIS,Met Office,2023-10-25,11 SERVICES,MARKETS,ECMWF,25254,54447.81,NOTVATREG
BEIS,Met Office,2023-10-25,11 SERVICES,MARKETS,ECMWF,25255,23366.69,NOTVATREG
BEIS,Met Office,2023-10-25,11 SERVICES,MARKETS,ECMWF,25256,1334.84,NOTVATREG
BEIS,Met Office,2023-10-25,11 SERVICES,MARKETS,ECMWF,25257,349.73,NOTVATREG
BEIS,Met Office,2023-10-25,11 SERVICES,MARKETS,ECMWF,25258,18816.55,NOTVATREG
BEIS,Met Office,2023-10-25,11 SERVICES,MARKETS,ECMWF,25259,106.93,NOTVATREG
BEIS,Met Office,2023-10-25,11 SERVICES,MARKETS,ECMWF,25260,395.6,NOTVATREG
BEIS,Met Office,2023-10-25,11 SERVICES,MARKETS,ECMWF,25261,158.67,NOTVATREG
BEIS,Met Office,2023-10-02,13 MISCELLANEOUS,CHIEF FINANCIAL OFFICER,EDEN SPRINGS UK LTD,483998,44.24,232160411
BEIS,Met Office,2023-10-02,13 MISCELLANEOUS,CHIEF FINANCIAL OFFICER,EDEN SPRINGS UK LTD,483999,440.48,232160411
BEIS,Met Office,2023-10-02,13 MISCELLANEOUS,CHIEF FINANCIAL OFFICER,EDEN SPRINGS UK LTD,484000,63.18,232160411
BEIS,Met Office,2023-10-30,13 MISCELLANEOUS,CHIEF FINANCIAL OFFICER,EDEN SPRINGS UK LTD,484954,652.49,232160411
BEIS,Met Office,2023-10-06,13 MISCELLANEOUS,PEOPLE,EDENRED - CHILDCARE VOUCHERS,484243,8890.5,649 503 520
BEIS,Met Office,2023-10-10,CYCLESCHEME,OTHER,EDENRED EB (SHOPPING VOUCHERS),484422,469,649 503 520
BEIS,Met Office,2023-10-04,13 MISCELLANEOUS,PEOPLE,EDENRED I&M (IRS VOUCHERS),484204,34246.5,649 503 520
BEIS,Met Office,2023-10-06,CYCLESCHEME,OTHER,EDENRED UK (CYCLESCHEME),484298,6542.16,649 503 520
BEIS,Met Office,2023-10-09,06 ACCOMMODATION,CHIEF FINANCIAL OFFICER,EDF ENERGY CUSTOMERS PLC,484221,179501.34,523041202
BEIS,Met Office,2023-10-09,06 ACCOMMODATION,CHIEF FINANCIAL OFFICER,EDF ENERGY CUSTOMERS PLC,484222,560939.62,523041202
BEIS,Met Office,2023-10-09,06 ACCOMMODATION,CHIEF FINANCIAL OFFICER,EDF ENERGY CUSTOMERS PLC,484223,190713.04,523041202
BEIS,Met Office,2023-10-16,06 ACCOMMODATION,CHIEF FINANCIAL OFFICER,EDF ENERGY CUSTOMERS PLC,484618,37826.69,523041202
BEIS,Met Office,2023-10-11,11 SERVICES,CHIEF FINANCIAL OFFICER,EIR,25328,58.87,4736919B
BEIS,Met Office,2023-10-24,13 MISCELLANEOUS,PEOPLE,ENGINEERING AND TECHNOLOGY BOARD,484850,4850,4322409
BEIS,Met Office,2023-10-04,11 SERVICES,CHIEF FINANCIAL OFFICER,ENTERPRISE RENT A CAR UK LTD,484096,695.5,215557314
BEIS,Met Office,2023-10-04,11 SERVICES,CHIEF FINANCIAL OFFICER,ENTERPRISE RENT A CAR UK LTD,484097,3698.65,215557314
BEIS,Met Office,2023-10-06,11 SERVICES,CHIEF FINANCIAL OFFICER,ENTERPRISE RENT A CAR UK LTD,484242,113.44,215557314
BEIS,Met Office,2023-10-10,11 SERVICES,CHIEF FINANCIAL OFFICER,ENTERPRISE RENT A CAR UK LTD,484457,3956.4,215557314
BEIS,Met Office,2023-10-18,11 SERVICES,CHIEF FINANCIAL OFFICER,ENTERPRISE RENT A CAR UK LTD,484707,58.57,215557314
BEIS,Met Office,2023-10-18,11 SERVICES,CHIEF FINANCIAL OFFICER,ENTERPRISE RENT A CAR UK LTD,484708,340.74,215557314
BEIS,Met Office,2023-10-31,03 STAFF COSTS T&S,CHIEF FINANCIAL OFFICER,ENTERPRISE RENT A CAR UK LTD,485048,995.86,215557314
BEIS,Met Office,2023-10-06,11 SERVICES,SCIENCE,Esri (Uk) Ltd,484139,4285.4,787430791
BEIS,Met Office,2023-10-25,11 SERVICES,MARKETS,EUMETNET - EIG,25347,291762.7,-
BEIS,Met Office,2023-10-02,06 ACCOMMODATION,SERVICES,Exeter & Devon Airport Limited,483991,1000,168173978
BEIS,Met Office,2023-10-25,06 ACCOMMODATION,CHIEF FINANCIAL OFFICER,Exeter City Council,479460,168960,142335594
BEIS,Met Office,2023-10-23,11 SERVICES,CHIEF FINANCIAL OFFICER,EXPONENTIAL-E,484201,2281.82,GB798572653
BEIS,Met Office,2023-10-19,11 SERVICES,CHIEF FINANCIAL OFFICER,EXPONENTIAL-E,484751,352.61,GB798572653
BEIS,Met Office,2023-10-25,03 STAFF COSTS T&S,SERVICES,FALKLAND ISLAND COMPANY LTD,483949,2823.33,N/A
BEIS,Met Office,2023-10-06,03 STAFF COSTS T&S,SERVICES,FALKLAND ISLAND COMPANY LTD,484239,700,N/A
BEIS,Met Office,2023-10-06,03 STAFF COSTS T&S,SERVICES,FALKLAND ISLAND COMPANY LTD,484240,700,N/A
BEIS,Met Office,2023-10-06,03 STAFF COSTS T&S,SERVICES,FALKLAND ISLAND COMPANY LTD,484241,700,N/A
BEIS,Met Office,2023-10-11,03 STAFF COSTS T&S,SERVICES,FALKLAND ISLAND COMPANY LTD,484476,2601.9,N/A
BEIS,Met Office,2023-10-06,11 SERVICES,SERVICES,FCDO SERVICES,484109,9975.03,888848729
BEIS,Met Office,2023-10-09,FIXTURE & FITTINGS,CHIEF FINANCIAL OFFICER,FMS INTERIOR SERVICES LTD,484148,167.38,922056940
BEIS,Met Office,2023-10-09,FIXTURE & FITTINGS,CHIEF FINANCIAL OFFICER,FMS INTERIOR SERVICES LTD,484148,30.9,922056940
BEIS,Met Office,2023-10-09,FIXTURE & FITTINGS,CHIEF FINANCIAL OFFICER,FMS INTERIOR SERVICES LTD,484148,104,922056940
BEIS,Met Office,2023-10-09,FIXTURE & FITTINGS,CHIEF FINANCIAL OFFICER,FMS INTERIOR SERVICES LTD,484148,1273.84,922056940
BEIS,Met Office,2023-10-09,FIXTURE & FITTINGS,CHIEF FINANCIAL OFFICER,FMS INTERIOR SERVICES LTD,484149,658.26,922056940
BEIS,Met Office,2023-10-09,FIXTURE & FITTINGS,CHIEF FINANCIAL OFFICER,FMS INTERIOR SERVICES LTD,484149,154.77,922056940
BEIS,Met Office,2023-10-09,FIXTURE & FITTINGS,CHIEF FINANCIAL OFFICER,FMS INTERIOR SERVICES LTD,484150,9.27,922056940
BEIS,Met Office,2023-10-18,06 ACCOMMODATION,CHIEF FINANCIAL OFFICER,FMS INTERIOR SERVICES LTD,484686,3655.02,922056940
BEIS,Met Office,2023-10-09,11 SERVICES,PROGRAMMES,Frazer-Nash Consultancy Ltd,484402,18652,GB564103956
BEIS,Met Office,2023-10-11,11 SERVICES,CHIEF FINANCIAL OFFICER,GAMMA TELECOM LTD,484473,27853.1,823820344
BEIS,Met Office,2023-10-11,11 SERVICES,CHIEF FINANCIAL OFFICER,GAMMA TELECOM LTD,484473,336.51,823820344
BEIS,Met Office,2023-10-11,11 SERVICES,CHIEF FINANCIAL OFFICER,GAMMA TELECOM LTD,484473,570.83,823820344
BEIS,Met Office,2023-10-12,11 SERVICES,SERVICES,GAMMA TELECOM LTD,484478,4376.54,823820344
BEIS,Met Office,2023-10-13,11 SERVICES,CHIEF FINANCIAL OFFICER,GB GROUP PLC,484585,771.12,539716218
BEIS,Met Office,2023-10-13,11 SERVICES,CHIEF FINANCIAL OFFICER,GB GROUP PLC,484586,94.86,539716218
BEIS,Met Office,2023-10-04,06 ACCOMMODATION,MARKETS,GEORGE DUNCAN MACLEOD,484154,250,-
BEIS,Met Office,2023-10-04,06 ACCOMMODATION,MARKETS,GEORGE DUNCAN MACLEOD,484154,35,-
BEIS,Met Office,2023-10-30,STOCK,SERVICES,GH ZEAL LTD,484580,0,648929087
BEIS,Met Office,2023-10-30,TRADE CREDITORS,SERVICES,GH ZEAL LTD,484580,5900,648929087
BEIS,Met Office,2023-10-30,11 SERVICES,SERVICES,GH ZEAL LTD,484580,17.5,648929087
BEIS,Met Office,2023-10-11,11 SERVICES,CHIEF FINANCIAL OFFICER,GIBRALTAR NYNEX COMMUNICATIONS LTD,484352,660,NOVAT
BEIS,Met Office,2023-10-31,10 EQUIPMENT MAINTENANCE,SERVICES,Gill Instruments Ltd,484987,3282,522056678
BEIS,Met Office,2023-10-31,11 SERVICES,SCIENCE,GINNY LYONS CATERING,484423,250,-
BEIS,Met Office,2023-10-04,08 SOFTWARE LICENCES,TECHNOLOGY AND CIO,GOOGLE IRELAND LTD,484079,37.41,6388047V
BEIS,Met Office,2023-10-02,06 ACCOMMODATION,MARKETS,GOSFORTH C OF E PRIMARY SCHOOL,484051,5,257177145
BEIS,Met Office,2023-10-02,06 ACCOMMODATION,MARKETS,GOSFORTH C OF E PRIMARY SCHOOL,484051,175,257177145
BEIS,Met Office,2023-10-24,11 SERVICES,SERVICES,GQA QUALIFICATIONS LTD,484667,655,-
BEIS,Met Office,2023-10-17,06 ACCOMMODATION,CHIEF FINANCIAL OFFICER,GROSVENOR SYSTEMS LTD,483201,456,342873151
BEIS,Met Office,2023-10-19,06 ACCOMMODATION,CHIEF FINANCIAL OFFICER,GROSVENOR SYSTEMS LTD,484755,12082.74,342873151
BEIS,Met Office,2023-10-26,11 SERVICES,SERVICES,GROUND CONTROL UK TECHNOLOGIES LTD,484869,1338.95,GB277698137
BEIS,Met Office,2023-10-04,06 ACCOMMODATION,CHIEF FINANCIAL OFFICER,GRS BUILDING SERVICES SOUTH-WEST,484081,2850,-
BEIS,Met Office,2023-10-10,06 ACCOMMODATION,CHIEF FINANCIAL OFFICER,GRS BUILDING SERVICES SOUTH-WEST,484421,4400,-
BEIS,Met Office,2023-10-30,06 ACCOMMODATION,CHIEF FINANCIAL OFFICER,GRS BUILDING SERVICES SOUTH-WEST,485006,3290,-
BEIS,Met Office,2023-10-04,06 ACCOMMODATION,CHIEF FINANCIAL OFFICER,GWELLA CONTRACTING SERVICES LTD,484085,5308,-
BEIS,Met Office,2023-10-05,11 SERVICES,PROGRAMMES,HAMDI MOHAMED EL HASSEN,25326,3077.77,-
BEIS,Met Office,2023-10-20,11 SERVICES,PEOPLE,HEALTH ASSURED LIMITED,484774,1120,927 5242 17
BEIS,Met Office,2023-10-11,13 MISCELLANEOUS,PEOPLE,HEALTH MANAGEMENT LTD,484327,150,792250621
BEIS,Met Office,2023-10-09,10 EQUIPMENT MAINTENANCE,TECHNOLOGY AND CIO,Hewlett Packard Ltd,484345,999998.79,314149679
BEIS,Met Office,2023-10-09,10 EQUIPMENT MAINTENANCE,TECHNOLOGY AND CIO,Hewlett Packard Ltd,484345,455944.14,314149679
BEIS,Met Office,2023-10-31,06 ACCOMMODATION,MARKETS,HIGHLANDS & ISLANDS AIRPORTS LTD.,474106,300,945667772
BEIS,Met Office,2023-10-04,06 ACCOMMODATION,CHIEF FINANCIAL OFFICER,HIGHLANDS & ISLANDS AIRPORTS LTD.,484107,205.28,945667772
BEIS,Met Office,2023-10-04,11 SERVICES,SERVICES,HITACHI CAPITAL VEHICLE SOLUTIONS,484165,1045.38,GB 823 8248 22
BEIS,Met Office,2023-10-31,11 SERVICES,SERVICES,HITACHI CAPITAL VEHICLE SOLUTIONS,485053,191.56,GB 823 8248 22
BEIS,Met Office,2023-10-13,11 SERVICES,PEOPLE,HITCH MARKETING LTD,484471,10000,137 9482 76
BEIS,Met Office,2023-10-27,PAYE AND VAT,OTHER,HMRC,484943,4926459.57,-
BEIS,Met Office,2023-10-25,11 SERVICES,PROGRAMMES,"IBL SOFTWARE ENGINEERING, SPOL S.R.O.",484152,-18198,SK2020241883
BEIS,Met Office,2023-10-25,11 SERVICES,TECHNOLOGY AND CIO,"IBL SOFTWARE ENGINEERING, SPOL S.R.O.",484153,68495.76,SK2020241883
BEIS,Met Office,2023-10-04,11 SERVICES,TECHNOLOGY AND CIO,Ibm United Kingdom Ltd,484094,13440.5,107328000
BEIS,Met Office,2023-10-04,08 SOFTWARE LICENCES,TECHNOLOGY AND CIO,Ibm United Kingdom Ltd,484186,7348.2,107328000
BEIS,Met Office,2023-10-13,08 SOFTWARE LICENCES,TECHNOLOGY AND CIO,Ibm United Kingdom Ltd,484616,11052,107328000
BEIS,Met Office,2023-10-04,13 MISCELLANEOUS,SERVICES,IMAGETEK SYSTEMS LTD,484158,1550.7,GB586331424
BEIS,Met Office,2023-10-04,13 MISCELLANEOUS,SERVICES,IMAGETEK SYSTEMS LTD,484160,603.2,GB586331424
BEIS,Met Office,2023-10-04,11 SERVICES,SERVICES,INMARSAT SOLUTIONS (CANADA) INC,484075,45.3,766144223
BEIS,Met Office,2023-10-04,11 SERVICES,MARKETS,INMARSAT SOLUTIONS (CANADA) INC,484076,1809.84,766144223
BEIS,Met Office,2023-10-04,11 SERVICES,SERVICES,INMARSAT SOLUTIONS (CANADA) INC,484077,45.3,766144223
BEIS,Met Office,2023-10-04,11 SERVICES,SERVICES,INMARSAT SOLUTIONS (CANADA) INC,484078,90.6,766144223
BEIS,Met Office,2023-10-04,11 SERVICES,OFFICE OF THE CEO,INSTITUTE OF DIRECTORS,484134,9995,239119361
BEIS,Met Office,2023-10-31,07 EQUIPMENT,TECHNOLOGY AND CIO,INSURGO MEDIA SERVICES LTD,485042,440000,979682734
BEIS,Met Office,2023-10-11,11 SERVICES,MARKETS,"INTELLOVATIONS, LLC",11231,4370.87,-
BEIS,Met Office,2023-10-25,11 SERVICES,MARKETS,INTERNATIONAL AIR TRANSPORT ASSOCIATION,11251,27125.8,107510570RT0001
BEIS,Met Office,2023-10-23,11 SERVICES,CHIEF FINANCIAL OFFICER,INTEROUTE COMMUNICATIONS LIMITED,483852,7100,832 7071 39
BEIS,Met Office,2023-10-18,11 SERVICES,MARKETS,IRIDIUM SATELLITE LLC,11244,4600.7,N/A
BEIS,Met Office,2023-10-10,03 STAFF COSTS T&S,SERVICES,JAMS,484349,260,VE
BEIS,Met Office,2023-10-11,11 SERVICES,PROGRAMMES,"K F LEWIN CONSULTING, LLC",11204,11364.54,-
BEIS,Met Office,2023-10-05,11 SERVICES,SERVICES,King'S College London,484229,4633.2,627403551
BEIS,Met Office,2023-10-25,11 SERVICES,SERVICES,Kongsberg Spacetec As,477251,50179,-
BEIS,Met Office,2023-10-11,11 SERVICES,TECHNOLOGY AND CIO,LAFOSSE ASSOCIATES,484484,17581.2,GB 360026537
BEIS,Met Office,2023-10-11,11 SERVICES,PROGRAMMES,LAFOSSE ASSOCIATES,484485,26339.4,GB 360026537
BEIS,Met Office,2023-10-25,PLANT AND EQUIPMENT,SERVICES,LANKHORST ROPES,25193,6971.14,NL0047.56.174.B
BEIS,Met Office,2023-10-25,PLANT AND EQUIPMENT,SERVICES,LANKHORST ROPES,25193,2023.74,NL0047.56.174.B
BEIS,Met Office,2023-10-25,PLANT AND EQUIPMENT,SERVICES,LANKHORST ROPES,25193,1227.16,NL0047.56.174.B
BEIS,Met Office,2023-10-25,PLANT AND EQUIPMENT,SERVICES,LANKHORST ROPES,25193,10575.12,NL0047.56.174.B
BEIS,Met Office,2023-10-26,06 ACCOMMODATION,CHIEF FINANCIAL OFFICER,Lars Communications Ltd,481737,21744.99,531463858
BEIS,Met Office,2023-10-04,11 SERVICES,PROGRAMMES,LE COMPTOIR AMERICAIN,25325,3077.77,-
BEIS,Met Office,2023-10-04,11 SERVICES,CHIEF FINANCIAL OFFICER,LEASEDRIVE RENTAL MANAGEMENT LTD,484145,1331.32,733546040
BEIS,Met Office,2023-10-06,11 SERVICES,CHIEF FINANCIAL OFFICER,LEX AUTOLEASE LTD,484188,5065.08,244155576
BEIS,Met Office,2023-10-09,11 SERVICES,MARKETS,LHR BUSINESS SUPPORT CENTRE LTD,484346,57.66,927365404
BEIS,Met Office,2023-10-04,11 SERVICES,CHIEF FINANCIAL OFFICER,LICENCE BUREAU LTD,484115,184.75,820219467
BEIS,Met Office,2023-10-04,11 SERVICES,SERVICES,LINKWAVE TECHNOLOGIES LTD,484164,12.95,715940432
BEIS,Met Office,2023-10-04,11 SERVICES,SERVICES,LINKWAVE TECHNOLOGIES LTD,484164,595,715940432
BEIS,Met Office,2023-10-04,11 SERVICES,MARKETS,LONDON ECONOMICS LTD,484112,80926.5,769529863
BEIS,Met Office,2023-10-24,11 SERVICES,TECHNOLOGY AND CIO,LRQA LTD,483227,123.5,821176647
BEIS,Met Office,2023-10-25,12 INTERNATIONAL,MARKETS,MACITECHSY SOLUTIONS,484730,1850,-
BEIS,Met Office,2023-10-25,12 INTERNATIONAL,MARKETS,MACITECHSY SOLUTIONS,484730,1019,-
BEIS,Met Office,2023-10-06,11 SERVICES,SERVICES,MADE TECH,484323,1610,938565184
BEIS,Met Office,2023-10-06,11 SERVICES,SERVICES,MADE TECH,484324,265037.86,938565184
BEIS,Met Office,2023-10-06,11 SERVICES,SERVICES,MADE TECH,484325,53025,938565184
BEIS,Met Office,2023-10-04,11 SERVICES,CHIEF FINANCIAL OFFICER,MANX TELECOM LTD,453479,53.74,003291912
BEIS,Met Office,2023-10-04,11 SERVICES,CHIEF FINANCIAL OFFICER,MANX TELECOM LTD,453480,-429.92,003291912
BEIS,Met Office,2023-10-04,06 ACCOMMODATION,CHIEF FINANCIAL OFFICER,MAPP (PROPERTY MANAGEMENT) LTD,484082,4527,725900735
BEIS,Met Office,2023-10-12,08 SOFTWARE LICENCES,PROGRAMMES,MAPTILER AG,484520,5795,-
BEIS,Met Office,2023-10-10,04 CONTRACTORS,PEOPLE,MATRIX SCM LIMITED,483796,182046.66,249 5734 68
BEIS,Met Office,2023-10-04,04 CONTRACTORS,PEOPLE,MATRIX SCM LIMITED,484040,270658.41,249 5734 68
BEIS,Met Office,2023-10-06,04 CONTRACTORS,PEOPLE,MATRIX SCM LIMITED,484328,251535.39,249 5734 68
BEIS,Met Office,2023-10-13,04 CONTRACTORS,PEOPLE,MATRIX SCM LIMITED,484588,166240.96,249 5734 68
BEIS,Met Office,2023-10-19,04 CONTRACTORS,PEOPLE,MATRIX SCM LIMITED,484752,221793.82,249 5734 68
BEIS,Met Office,2023-10-26,04 CONTRACTORS,PEOPLE,MATRIX SCM LIMITED,484912,218364.78,249 5734 68
BEIS,Met Office,2023-10-02,06 ACCOMMODATION,CHIEF FINANCIAL OFFICER,MAURICE MACAULAY,484038,1331.84,680949687
BEIS,Met Office,2023-10-04,11 SERVICES,OFFICE OF THE CEO,MAZARS LLP,484127,7440,839835673
BEIS,Met Office,2023-10-16,08 SOFTWARE LICENCES,SERVICES,MERKLE ONE,484622,8314.99,GB478022835
BEIS,Met Office,2023-10-16,08 SOFTWARE LICENCES,SERVICES,MERKLE ONE,484622,0.01,GB478022835
BEIS,Met Office,2023-10-27,10 EQUIPMENT MAINTENANCE,SERVICES,MICHELL INSTRUMENTS LTD,484875,200,214757561
BEIS,Met Office,2023-10-31,06 ACCOMMODATION,CHIEF FINANCIAL OFFICER,Mitie Landscapes Ltd,484955,143.75,GB 416 706 654
BEIS,Met Office,2023-10-27,06 ACCOMMODATION,CHIEF FINANCIAL OFFICER,Mitie Landscapes Ltd,484956,2400,GB 416 706 654
BEIS,Met Office,2023-10-27,06 ACCOMMODATION,CHIEF FINANCIAL OFFICER,Mitie Landscapes Ltd,484957,1150,GB 416 706 654
BEIS,Met Office,2023-10-27,06 ACCOMMODATION,CHIEF FINANCIAL OFFICER,Mitie Landscapes Ltd,484958,4000,GB 416 706 654
BEIS,Met Office,2023-10-27,06 ACCOMMODATION,CHIEF FINANCIAL OFFICER,Mitie Landscapes Ltd,484959,1656.25,GB 416 706 654
BEIS,Met Office,2023-10-27,06 ACCOMMODATION,CHIEF FINANCIAL OFFICER,Mitie Landscapes Ltd,484960,1500,GB 416 706 654
BEIS,Met Office,2023-10-27,06 ACCOMMODATION,CHIEF FINANCIAL OFFICER,Mitie Landscapes Ltd,484961,2125,GB 416 706 654
BEIS,Met Office,2023-10-27,06 ACCOMMODATION,CHIEF FINANCIAL OFFICER,Mitie Landscapes Ltd,484962,700,GB 416 706 654
BEIS,Met Office,2023-10-27,06 ACCOMMODATION,CHIEF FINANCIAL OFFICER,Mitie Landscapes Ltd,484963,4062.5,GB 416 706 654
BEIS,Met Office,2023-10-02,11 SERVICES,CHIEF FINANCIAL OFFICER,MITIE SECURITY LTD,484008,3488.02,416706654
BEIS,Met Office,2023-10-02,11 SERVICES,CHIEF FINANCIAL OFFICER,MITIE SECURITY LTD,484008,8137,416706654
BEIS,Met Office,2023-10-02,11 SERVICES,CHIEF FINANCIAL OFFICER,MITIE SECURITY LTD,484009,23148.5,416706654
BEIS,Met Office,2023-10-11,11 SERVICES,CHIEF FINANCIAL OFFICER,MITIE SECURITY LTD,484169,1292.43,416706654
BEIS,Met Office,2023-10-27,11 SERVICES,CHIEF FINANCIAL OFFICER,MITIE SECURITY LTD,484927,3488.02,416706654
BEIS,Met Office,2023-10-27,11 SERVICES,CHIEF FINANCIAL OFFICER,MITIE SECURITY LTD,484927,8137,416706654
BEIS,Met Office,2023-10-27,11 SERVICES,CHIEF FINANCIAL OFFICER,MITIE SECURITY LTD,484928,23148.5,416706654
BEIS,Met Office,2023-10-02,11 SERVICES,PEOPLE,MOMENTUM INCORPORATED,484002,13320,598958541
BEIS,Met Office,2023-10-06,11 SERVICES,PEOPLE,MOMENTUM INCORPORATED,484103,5994,598958541
BEIS,Met Office,2023-10-19,11 SERVICES,PEOPLE,MOMENTUM INCORPORATED,484700,6660,598958541
BEIS,Met Office,2023-10-19,11 SERVICES,PEOPLE,MOMENTUM INCORPORATED,484701,6660,598958541
BEIS,Met Office,2023-10-04,11 SERVICES,PROGRAMMES,MONGODB LTD,481090,6100,IE9793087U
BEIS,Met Office,2023-10-04,06 ACCOMMODATION,CHIEF FINANCIAL OFFICER,MORAY COUNCIL,484102,117.13,663755506
BEIS,Met Office,2023-10-09,13 MISCELLANEOUS,CHIEF FINANCIAL OFFICER,MORAY COUNCIL,484326,237.48,663755506
BEIS,Met Office,2023-10-10,06 ACCOMMODATION,CHIEF FINANCIAL OFFICER,MORAY COUNCIL,484417,408.31,663755506
BEIS,Met Office,2023-10-17,06 ACCOMMODATION,CHIEF FINANCIAL OFFICER,MORAY COUNCIL,484660,3112.5,663755506
BEIS,Met Office,2023-10-06,11 SERVICES,CHIEF FINANCIAL OFFICER,Morton Fraser LLP,484342,388.92,269129336
BEIS,Met Office,2023-10-30,11 SERVICES,CHIEF FINANCIAL OFFICER,Morton Fraser LLP,484840,62.5,269129336
BEIS,Met Office,2023-10-30,11 SERVICES,CHIEF FINANCIAL OFFICER,Morton Fraser LLP,484841,175,269129336
BEIS,Met Office,2023-10-10,06 ACCOMMODATION,CHIEF FINANCIAL OFFICER,MOUNT CHARLES GROUP LTD,484354,496.27,517116274
BEIS,Met Office,2023-10-13,13 MISCELLANEOUS,SERVICES,National Oceanography Centre,484579,7000,GB 338 5487 64
BEIS,Met Office,2023-10-23,TRADE CREDITORS,OTHER,NATWEST COMMERCIAL CARDS DIVISION,484766,167150.44,N/A
BEIS,Met Office,2023-10-11,11 SERVICES,CHIEF FINANCIAL OFFICER,NEOS NETWORKS LTD,484356,1167.75,553769603
BEIS,Met Office,2023-10-19,11 SERVICES,TECHNOLOGY AND CIO,NEXUS OPEN SYSTEMS LTD,484728,2977.92,723221673
BEIS,Met Office,2023-10-04,13 MISCELLANEOUS,CHIEF FINANCIAL OFFICER,NORSCOTT VENDING SERVICES LTD,484095,85,751402071
BEIS,Met Office,2023-10-11,13 MISCELLANEOUS,CHIEF FINANCIAL OFFICER,NORSCOTT VENDING SERVICES LTD,484469,34.75,751402071
BEIS,Met Office,2023-10-31,06 ACCOMMODATION,SERVICES,Northern Ireland Water,484921,70,898746537
BEIS,Met Office,2023-10-31,06 ACCOMMODATION,SERVICES,Northern Ireland Water,484922,200,898746537
BEIS,Met Office,2023-10-04,11 SERVICES,PROGRAMMES,NORWEGIAN REFUGEE COUNCIL,478163,33276.6,-
BEIS,Met Office,2023-10-04,06 ACCOMMODATION,CHIEF FINANCIAL OFFICER,Npl Management Ltd,484159,1100,207523388
BEIS,Met Office,2023-10-18,11 SERVICES,SERVICES,NSSL GLOBAL LTD,11211,56.53,725151948
BEIS,Met Office,2023-10-18,11 SERVICES,SERVICES,NSSL GLOBAL LTD,11212,72.68,725151948
BEIS,Met Office,2023-10-18,11 SERVICES,MARKETS,NSSL GLOBAL LTD,11213,44.42,725151948
BEIS,Met Office,2023-10-06,06 ACCOMMODATION,CHIEF FINANCIAL OFFICER,OCS Group UK Limited,484303,165492.88,GB238034379
BEIS,Met Office,2023-10-31,06 ACCOMMODATION,CHIEF FINANCIAL OFFICER,OCS Group UK Limited,485072,14676.5,GB238034379
BEIS,Met Office,2023-10-31,06 ACCOMMODATION,CHIEF FINANCIAL OFFICER,OCS Group UK Limited,485072,153094.5,GB238034379
BEIS,Met Office,2023-10-04,10 EQUIPMENT MAINTENANCE,TECHNOLOGY AND CIO,ORACLE CORPORATION UK LTD,484137,40.19,391313073
BEIS,Met Office,2023-10-04,10 EQUIPMENT MAINTENANCE,TECHNOLOGY AND CIO,ORACLE CORPORATION UK LTD,484137,10538.41,391313073
BEIS,Met Office,2023-10-11,07 EQUIPMENT,SERVICES,PETERS & MAY GLOBAL LOGISTICS LTD,484491,1662.36,995183276
BEIS,Met Office,2023-10-17,STOCK,SERVICES,PETERS & MAY GLOBAL LOGISTICS LTD,484670,75,995183276
BEIS,Met Office,2023-10-31,STOCK,SERVICES,PHOTONIC SOLUTIONS LTD,481188,0,724212864
BEIS,Met Office,2023-10-31,TRADE CREDITORS,SERVICES,PHOTONIC SOLUTIONS LTD,481188,1600,724212864
BEIS,Met Office,2023-10-31,11 SERVICES,SERVICES,PHOTONIC SOLUTIONS LTD,481188,25,724212864
BEIS,Met Office,2023-10-31,STOCK,SERVICES,PHOTONIC SOLUTIONS LTD,481189,0,724212864
BEIS,Met Office,2023-10-31,TRADE CREDITORS,SERVICES,PHOTONIC SOLUTIONS LTD,481189,2040,724212864
BEIS,Met Office,2023-10-31,11 SERVICES,SERVICES,PHOTONIC SOLUTIONS LTD,481189,25,724212864
BEIS,Met Office,2023-10-18,11 SERVICES,PEOPLE,PLURALSIGHT,11216,105606.02,EU826020045
BEIS,Met Office,2023-10-18,11 SERVICES,SCIENCE,Plymouth Marine Laboratory,484151,17202.75,927105830
BEIS,Met Office,2023-10-11,13 MISCELLANEOUS,CHIEF FINANCIAL OFFICER,POSTURITE (UK) LTD,483479,50,583565114
BEIS,Met Office,2023-10-11,13 MISCELLANEOUS,CHIEF FINANCIAL OFFICER,POSTURITE (UK) LTD,483522,46.5,583565114
BEIS,Met Office,2023-10-11,13 MISCELLANEOUS,CHIEF FINANCIAL OFFICER,POSTURITE (UK) LTD,483618,34.75,583565114
BEIS,Met Office,2023-10-11,13 MISCELLANEOUS,CHIEF FINANCIAL OFFICER,POSTURITE (UK) LTD,483836,17.84,583565114
BEIS,Met Office,2023-10-11,13 MISCELLANEOUS,CHIEF FINANCIAL OFFICER,POSTURITE (UK) LTD,483896,50,583565114
BEIS,Met Office,2023-10-11,13 MISCELLANEOUS,CHIEF FINANCIAL OFFICER,POSTURITE (UK) LTD,483897,50,583565114
BEIS,Met Office,2023-10-11,13 MISCELLANEOUS,CHIEF FINANCIAL OFFICER,POSTURITE (UK) LTD,484003,181.48,583565114
BEIS,Met Office,2023-10-11,13 MISCELLANEOUS,CHIEF FINANCIAL OFFICER,POSTURITE (UK) LTD,484418,50,583565114
BEIS,Met Office,2023-10-09,06 ACCOMMODATION,CHIEF FINANCIAL OFFICER,POWER NI ENERGY LTD,484220,737.23,617518142
BEIS,Met Office,2023-10-18,06 ACCOMMODATION,CHIEF FINANCIAL OFFICER,POWER NI ENERGY LTD,484692,113.05,617518142
BEIS,Met Office,2023-10-06,08 SOFTWARE LICENCES,SERVICES,PRESERVICA LTD,483870,13848,182627102
BEIS,Met Office,2023-10-12,11 SERVICES,PROGRAMMES,PRISM INFOSEC LTD,484486,5400,GB 879 7957 24
BEIS,Met Office,2023-10-18,08 SOFTWARE LICENCES,CHIEF FINANCIAL OFFICER,"PROSCI, INC.",11209,12088.63,-
BEIS,Met Office,2023-10-16,13 MISCELLANEOUS,SCIENCE,PUBLIC HEALTH ENGLAND,484162,3000,GB 888 851 648
BEIS,Met Office,2023-10-06,PLANT AND EQUIPMENT,PROGRAMMES,PZ&W LTD,484238,16524,684 6795 68
BEIS,Met Office,2023-10-06,11 SERVICES,PEOPLE,QA LTD,483066,10066,864455303
BEIS,Met Office,2023-10-13,11 SERVICES,SERVICES,Queen'S University Belfast,484587,4633,GB 254 7995 11
BEIS,Met Office,2023-10-04,06 ACCOMMODATION,MARKETS,R & C CRICHTON LTD,484155,200,933 7802 12
BEIS,Met Office,2023-10-04,06 ACCOMMODATION,MARKETS,R & C CRICHTON LTD,484155,36,933 7802 12
BEIS,Met Office,2023-10-27,07 EQUIPMENT,SERVICES,R S Aqua Ltd,483407,170,370059760
BEIS,Met Office,2023-10-27,07 EQUIPMENT,SERVICES,R S Aqua Ltd,483407,2159,370059760
BEIS,Met Office,2023-10-27,07 EQUIPMENT,SERVICES,R S Aqua Ltd,483407,2159,370059760
BEIS,Met Office,2023-10-04,03 STAFF COSTS T&S,CHIEF FINANCIAL OFFICER,RAINBOW CITY TAXIS,484108,192.8,724295039
BEIS,Met Office,2023-10-31,03 STAFF COSTS T&S,CHIEF FINANCIAL OFFICER,RAINBOW CITY TAXIS,485049,97.94,724295039
BEIS,Met Office,2023-10-09,11 SERVICES,PROGRAMMES,RAINMAKER SOLUTIONS LTD,484113,30000,-
BEIS,Met Office,2023-10-09,11 SERVICES,PROGRAMMES,RAINMAKER SOLUTIONS LTD,484113,1867.38,-
BEIS,Met Office,2023-10-12,10 EQUIPMENT MAINTENANCE,SERVICES,RAISE TELECOMS LTD,484308,23283,166016521
BEIS,Met Office,2023-10-24,10 EQUIPMENT MAINTENANCE,SERVICES,RAISE TELECOMS LTD,484727,21983,166016521
BEIS,Met Office,2023-10-13,11 SERVICES,PROGRAMMES,Red Oak Consulting LLP,484577,12360,807766990
BEIS,Met Office,2023-10-11,12 INTERNATIONAL,MARKETS,REDACTED � PERSONAL DATA,11229,2984.78,-
BEIS,Met Office,2023-10-04,06 ACCOMMODATION,CHIEF FINANCIAL OFFICER,REDACTED � PERSONAL DATA,484157,572.64,NOT VAT REGD
BEIS,Met Office,2023-10-06,11 SERVICES,SERVICES,REDACTED � PERSONAL DATA,484305,4633.2,-
BEIS,Met Office,2023-10-09,11 SERVICES,CHIEF FINANCIAL OFFICER,REDACTED � PERSONAL DATA,484353,153,729159704
BEIS,Met Office,2023-10-13,06 ACCOMMODATION,SERVICES,REDACTED � PERSONAL DATA,484538,14146.9,N/A
BEIS,Met Office,2023-10-25,06 ACCOMMODATION,CHIEF FINANCIAL OFFICER,REDACTED � PERSONAL DATA,484545,760,-
BEIS,Met Office,2023-10-17,11 SERVICES,SERVICES,REDACTED � PERSONAL DATA,484665,130.24,-
BEIS,Met Office,2023-10-25,11 SERVICES,PEOPLE,REDACTED � PERSONAL DATA,484757,4686,143043312
BEIS,Met Office,2023-10-23,11 SERVICES,PEOPLE,REDACTED � PERSONAL DATA,484758,6637,143043312
BEIS,Met Office,2023-10-25,11 SERVICES,PEOPLE,REDACTED � PERSONAL DATA,484759,3250,143043312
BEIS,Met Office,2023-10-11,11 SERVICES,PEOPLE,RESTORE RECORDS MANAGEMENT,484355,13.89,843 863011
BEIS,Met Office,2023-10-11,11 SERVICES,CHIEF FINANCIAL OFFICER,Reuters Ltd,484101,2370,397000555
BEIS,Met Office,2023-10-06,11 SERVICES,TECHNOLOGY AND CIO,RISUAL LIMITED,484124,2715,864480893
BEIS,Met Office,2023-10-10,06 ACCOMMODATION,CHIEF FINANCIAL OFFICER,RIVER RIDGE,484412,165.35,176286083
BEIS,Met Office,2023-10-10,11 SERVICES,PROGRAMMES,ROTHAMSTED RESEARCH LIMITED,484407,28374,197420151
BEIS,Met Office,2023-10-06,11 SERVICES,PROGRAMMES,ROWE IT LTD,484143,6072.62,924964394
BEIS,Met Office,2023-10-06,11 SERVICES,PROGRAMMES,ROWE IT LTD,484143,4250.83,924964394
BEIS,Met Office,2023-10-06,11 SERVICES,PROGRAMMES,ROWE IT LTD,484143,17003.31,924964394
BEIS,Met Office,2023-10-06,11 SERVICES,PROGRAMMES,ROWE IT LTD,484143,17610.57,924964394
BEIS,Met Office,2023-10-06,11 SERVICES,PROGRAMMES,ROWE IT LTD,484143,1821.78,924964394
BEIS,Met Office,2023-10-06,11 SERVICES,PROGRAMMES,ROWE IT LTD,484143,13967.01,924964394
BEIS,Met Office,2023-10-09,11 SERVICES,PROGRAMMES,ROWE IT LTD,484300,99062.5,924964394
BEIS,Met Office,2023-10-09,11 SERVICES,PROGRAMMES,ROWE IT LTD,484408,15000,924964394
BEIS,Met Office,2023-10-19,11 SERVICES,PROGRAMMES,ROWE IT LTD,484706,9250.94,924964394
BEIS,Met Office,2023-10-19,11 SERVICES,PROGRAMMES,ROWE IT LTD,484706,9250.94,924964394
BEIS,Met Office,2023-10-19,11 SERVICES,PROGRAMMES,ROWE IT LTD,484706,4204.96,924964394
BEIS,Met Office,2023-10-19,11 SERVICES,PROGRAMMES,ROWE IT LTD,484706,34480.76,924964394
BEIS,Met Office,2023-10-19,11 SERVICES,PROGRAMMES,ROWE IT LTD,484706,26911.81,924964394
BEIS,Met Office,2023-10-04,11 SERVICES,SERVICES,ROYAL METEOROLOGICAL INSTITUTE OF BELGIUM,25176,25999.44,BE0349294822
BEIS,Met Office,2023-10-16,13 MISCELLANEOUS,SERVICES,Royal Meteorological Society,484625,591.1,-
BEIS,Met Office,2023-10-13,06 ACCOMMODATION,CHIEF FINANCIAL OFFICER,SAFESTORE LTD,484534,3430.33,722887607
BEIS,Met Office,2023-10-23,11 SERVICES,MARKETS,SAVANTA GROUP LTD,484809,4500,GB 749 7521 90
BEIS,Met Office,2023-10-06,11 SERVICES,PROGRAMMES,SCIENCE & TECHNOLOGY FACILITIES COUNCIL,484230,24294,287461957
BEIS,Met Office,2023-10-23,11 SERVICES,PROGRAMMES,SCIENCE & TECHNOLOGY FACILITIES COUNCIL,484811,8749.5,287461957
BEIS,Met Office,2023-10-06,06 ACCOMMODATION,MARKETS,SCOTTISH HYDRO-ELECTRIC,484224,223.68,553769603
BEIS,Met Office,2023-10-30,07 EQUIPMENT,SERVICES,SENSING DEVICES LTD,485034,18.5,163684738
BEIS,Met Office,2023-10-30,07 EQUIPMENT,SERVICES,SENSING DEVICES LTD,485034,1081.3,163684738
BEIS,Met Office,2023-10-04,11 SERVICES,PROGRAMMES,SERVICENOW UK LTD.,484161,486,-
BEIS,Met Office,2023-10-25,06 ACCOMMODATION,CHIEF FINANCIAL OFFICER,Severn Trent Water Ltd,484761,694.42,486985565
BEIS,Met Office,2023-10-25,06 ACCOMMODATION,CHIEF FINANCIAL OFFICER,Severn Trent Water Ltd,484762,241.05,486985565
BEIS,Met Office,2023-10-27,06 ACCOMMODATION,CHIEF FINANCIAL OFFICER,Severn Trent Water Ltd,484924,41.47,486985565
BEIS,Met Office,2023-10-12,06 ACCOMMODATION,CHIEF FINANCIAL OFFICER,SHETLAND CLEANING SERVICES,484541,831.13,430028404
BEIS,Met Office,2023-10-23,11 SERVICES,PEOPLE,SKILLTEC LIMITED,478486,4750,909833105
BEIS,Met Office,2023-10-13,11 SERVICES,PEOPLE,SKILLTEC LIMITED,482688,6800,909833105
BEIS,Met Office,2023-10-11,11 SERVICES,PEOPLE,SKILLTEC LIMITED,483030,690,909833105
BEIS,Met Office,2023-10-04,11 SERVICES,SERVICES,SOFTWIRE TECHNOLOGY LIMITED,484163,4200,752 1253 57
BEIS,Met Office,2023-10-18,03 STAFF COSTS T&S,MARKETS,SOLOMON & COMPANY (ST HELENA) PLC,484721,200,-
BEIS,Met Office,2023-10-11,08 SOFTWARE LICENCES,TECHNOLOGY AND CIO,SONARSOURCE SA,11236,3286.22,CHE-114.587.664
BEIS,Met Office,2023-10-20,11 SERVICES,PEOPLE,SOURCE COACHING CONSULTANCY,484771,1340,170422048
BEIS,Met Office,2023-10-03,06 ACCOMMODATION,PROGRAMMES,SOUTH OXFORDSHIRE DISTRICT COUNCIL,484071,2071,-
BEIS,Met Office,2023-10-18,06 ACCOMMODATION,CHIEF FINANCIAL OFFICER,SOUTH OXFORDSHIRE DISTRICT COUNCIL,484702,654.67,-
BEIS,Met Office,2023-10-02,06 ACCOMMODATION,CHIEF FINANCIAL OFFICER,South West Water Ltd,484012,55.77,236873674
BEIS,Met Office,2023-10-13,06 ACCOMMODATION,CHIEF FINANCIAL OFFICER,South West Water Ltd,484540,1486.3,236873674
BEIS,Met Office,2023-10-17,06 ACCOMMODATION,CHIEF FINANCIAL OFFICER,South West Water Ltd,484578,70.27,236873674
BEIS,Met Office,2023-10-13,06 ACCOMMODATION,CHIEF FINANCIAL OFFICER,South West Water Ltd,484617,3904.2,236873674
BEIS,Met Office,2023-10-23,07 EQUIPMENT,TECHNOLOGY AND CIO,SPECIALIST COMPUTER CENTRES,484156,-373.08,313651680
BEIS,Met Office,2023-10-23,11 SERVICES,TECHNOLOGY AND CIO,SPECIALIST COMPUTER CENTRES,484810,21062.65,313651680
BEIS,Met Office,2023-10-10,11 SERVICES,MARKETS,SPOKE (INTERACTIVE) LTD,484470,770,840156451
BEIS,Met Office,2023-10-13,06 ACCOMMODATION,CHIEF FINANCIAL OFFICER,Sruc,484621,560,GB435882817
BEIS,Met Office,2023-10-11,11 SERVICES,TECHNOLOGY AND CIO,SSE CONTRACTING LTD,484515,9453.82,382894546
BEIS,Met Office,2023-10-11,06 ACCOMMODATION,CHIEF FINANCIAL OFFICER,St. Modwen Properties Limited,484487,73.55,005489575
BEIS,Met Office,2023-10-11,06 ACCOMMODATION,CHIEF FINANCIAL OFFICER,St. Modwen Properties Limited,484522,96.26,005489575
BEIS,Met Office,2023-10-25,06 ACCOMMODATION,CHIEF FINANCIAL OFFICER,St. Modwen Properties Limited,484672,-169.81,005489575
BEIS,Met Office,2023-10-25,06 ACCOMMODATION,CHIEF FINANCIAL OFFICER,St. Modwen Properties Limited,484750,73.55,005489575
BEIS,Met Office,2023-10-25,06 ACCOMMODATION,CHIEF FINANCIAL OFFICER,St. Modwen Properties Limited,484800,96.26,005489575
BEIS,Met Office,2023-10-25,06 ACCOMMODATION,CHIEF FINANCIAL OFFICER,St. Modwen Properties Limited,484874,40.01,005489575
BEIS,Met Office,2023-10-25,06 ACCOMMODATION,CHIEF FINANCIAL OFFICER,St. Modwen Properties Limited,484878,3.42,005489575
BEIS,Met Office,2023-10-27,06 ACCOMMODATION,CHIEF FINANCIAL OFFICER,St. Modwen Properties Limited,484913,93.3,005489575
BEIS,Met Office,2023-10-17,03 STAFF COSTS T&S,SERVICES,STORAGE FACTORY,484659,185,130 5237 12
BEIS,Met Office,2023-10-10,11 SERVICES,CHIEF FINANCIAL OFFICER,SURE SOUTH ATLANTIC LTD,484440,2124.59,NOVATREG
BEIS,Met Office,2023-10-11,11 SERVICES,CHIEF FINANCIAL OFFICER,SURE SOUTH ATLANTIC LTD,484474,6478,-
BEIS,Met Office,2023-10-11,11 SERVICES,CHIEF FINANCIAL OFFICER,SURE SOUTH ATLANTIC LTD,484475,4801,-
BEIS,Met Office,2023-10-16,11 SERVICES,CHIEF FINANCIAL OFFICER,SURE SOUTH ATLANTIC LTD (ST HELENA),484581,1413.5,30005
BEIS,Met Office,2023-10-04,11 SERVICES,TECHNOLOGY AND CIO,SYNTHESYS SYSTEMS ENGINEERS LTD,484125,5043.6,499309492
BEIS,Met Office,2023-10-10,11 SERVICES,TECHNOLOGY AND CIO,SYNTHESYS SYSTEMS ENGINEERS LTD,484126,3715.2,499309492
BEIS,Met Office,2023-10-12,11 SERVICES,TECHNOLOGY AND CIO,SYNTHESYS SYSTEMS ENGINEERS LTD,484480,-4953.6,499309492
BEIS,Met Office,2023-10-12,11 SERVICES,TECHNOLOGY AND CIO,SYNTHESYS SYSTEMS ENGINEERS LTD,484481,-5043.6,499309492
BEIS,Met Office,2023-10-04,11 SERVICES,SERVICES,TCH LEASING,484129,15,GB172586736
BEIS,Met Office,2023-10-04,11 SERVICES,SERVICES,TCH LEASING,484226,2459.4,GB172586736
BEIS,Met Office,2023-10-10,11 SERVICES,CHIEF FINANCIAL OFFICER,TELEFONICA O2 UK LIMITED,484419,3619.77,778603785
BEIS,Met Office,2023-10-27,11 SERVICES,CHIEF FINANCIAL OFFICER,TELEFONICA O2 UK LIMITED,484920,57.4,778603785
BEIS,Met Office,2023-10-06,06 ACCOMMODATION,CHIEF FINANCIAL OFFICER,TENNIE FACILITIES PROPERTY MANAGEMENT LTD,484209,179.53,982055803
BEIS,Met Office,2023-10-06,11 SERVICES,PROGRAMMES,THAT LITTLE AGENCY LIMITED,484205,12375,243725019
BEIS,Met Office,2023-10-06,11 SERVICES,PROGRAMMES,THAT LITTLE AGENCY LIMITED,484206,12375,243725019
BEIS,Met Office,2023-10-12,11 SERVICES,SERVICES,The James Hutton Institute,484347,4633.2,GB108249520
BEIS,Met Office,2023-10-26,11 SERVICES,CHIEF FINANCIAL OFFICER,THE STRENGTHS PEOPLE LTD,484914,3371,206868488
BEIS,Met Office,2023-10-04,08 SOFTWARE LICENCES,CHIEF FINANCIAL OFFICER,TIMEWATCH PLC,484208,1375,461555250
BEIS,Met Office,2023-10-06,06 ACCOMMODATION,CHIEF FINANCIAL OFFICER,TOP RANK CLEANING SERVICES LTD,484227,950.56,-
BEIS,Met Office,2023-10-25,06 ACCOMMODATION,CHIEF FINANCIAL OFFICER,TOTAL GAS & POWER LIMITED,483752,-10701.26,689638949
BEIS,Met Office,2023-10-25,06 ACCOMMODATION,CHIEF FINANCIAL OFFICER,TOTAL GAS & POWER LIMITED,484731,11134.69,689638949
BEIS,Met Office,2023-10-25,06 ACCOMMODATION,CHIEF FINANCIAL OFFICER,TOTAL GAS & POWER LIMITED,484732,923.81,689638949
BEIS,Met Office,2023-10-12,11 SERVICES,PEOPLE,TP HEALTH LTD,484128,1679,883064608
BEIS,Met Office,2023-10-13,06 ACCOMMODATION,MARKETS,Trinity House,482177,59.97,243120414
BEIS,Met Office,2023-10-13,06 ACCOMMODATION,MARKETS,Trinity House,483678,9.69,243120414
BEIS,Met Office,2023-10-13,06 ACCOMMODATION,MARKETS,Trinity House,483680,-59.97,243120414
BEIS,Met Office,2023-10-13,06 ACCOMMODATION,MARKETS,Trinity House,483681,-3520.41,243120414
BEIS,Met Office,2023-10-13,11 SERVICES,SERVICES,Trinity House,484613,84330.77,243120414
BEIS,Met Office,2023-10-13,11 SERVICES,SERVICES,Trinity House,484613,75000,243120414
BEIS,Met Office,2023-10-04,11 SERVICES,PROGRAMMES,UCAR INCOMING PAYMENTS,11201,5876.88,-
BEIS,Met Office,2023-10-30,11 SERVICES,PROGRAMMES,UK ATOMIC ENERGY AUTHORITY,484971,7939,GB570101391
BEIS,Met Office,2023-10-30,11 SERVICES,PROGRAMMES,UK ATOMIC ENERGY AUTHORITY,484972,19625.03,GB570101391
BEIS,Met Office,2023-10-06,06 ACCOMMODATION,CHIEF FINANCIAL OFFICER,UK CENTRE FOR ECOLOGY & HYDROLOGY (UKCEH),484333,2772.65,336940192
BEIS,Met Office,2023-10-11,11 SERVICES,SERVICES,UK CENTRE FOR ECOLOGY & HYDROLOGY (UKCEH),484488,3430,336940192
BEIS,Met Office,2023-10-04,11 SERVICES,MARKETS,UKRI,484225,25413.1,GB287461957
BEIS,Met Office,2023-10-20,11 SERVICES,SCIENCE,University College London,484729,50000,524371168
BEIS,Met Office,2023-10-27,13 MISCELLANEOUS,SCIENCE,University Of Bristol,477403,666.66,991261800
BEIS,Met Office,2023-10-06,13 MISCELLANEOUS,MARKETS,University Of Bristol,484332,6574.84,991261800
BEIS,Met Office,2023-10-30,13 MISCELLANEOUS,SCIENCE,University Of Cambridge,485027,1000,214222124
BEIS,Met Office,2023-10-18,13 MISCELLANEOUS,SCIENCE,University Of East Anglia,484723,1000,595183505
BEIS,Met Office,2023-10-06,11 SERVICES,PROGRAMMES,University of Edinburgh,484191,33333,592950700
BEIS,Met Office,2023-10-31,11 SERVICES,SCIENCE,University of Edinburgh,484192,12500,592950700
BEIS,Met Office,2023-10-13,11 SERVICES,SCIENCE,University Of Exeter,475380,12500,142047795
BEIS,Met Office,2023-10-13,11 SERVICES,SCIENCE,University Of Exeter,475484,12500,142047795
BEIS,Met Office,2023-10-13,11 SERVICES,SCIENCE,University Of Exeter,483818,-12500,142047795
BEIS,Met Office,2023-10-13,11 SERVICES,SCIENCE,University Of Exeter,483819,-12500,142047795
BEIS,Met Office,2023-10-13,11 SERVICES,SCIENCE,University Of Exeter,483820,-12500,142047795
BEIS,Met Office,2023-10-13,11 SERVICES,SCIENCE,University Of Exeter,483821,-12500,142047795
BEIS,Met Office,2023-10-13,11 SERVICES,SCIENCE,University Of Exeter,483822,-12500,142047795
BEIS,Met Office,2023-10-13,11 SERVICES,SCIENCE,University Of Exeter,483823,-12500,142047795
BEIS,Met Office,2023-10-13,11 SERVICES,SCIENCE,University Of Exeter,483837,18750,142047795
BEIS,Met Office,2023-10-13,11 SERVICES,SCIENCE,University Of Exeter,483838,18750,142047795
BEIS,Met Office,2023-10-13,13 MISCELLANEOUS,SCIENCE,University Of Exeter,484091,1000,142047795
BEIS,Met Office,2023-10-13,13 MISCELLANEOUS,SCIENCE,University Of Exeter,484092,1000,142047795
BEIS,Met Office,2023-10-13,13 MISCELLANEOUS,SCIENCE,University Of Exeter,484138,1000,142047795
BEIS,Met Office,2023-10-13,13 MISCELLANEOUS,SCIENCE,University Of Exeter,484140,1000,142047795
BEIS,Met Office,2023-10-13,13 MISCELLANEOUS,SCIENCE,University Of Exeter,484141,1000,142047795
BEIS,Met Office,2023-10-13,13 MISCELLANEOUS,SCIENCE,University Of Exeter,484142,1000,142047795
BEIS,Met Office,2023-10-31,11 SERVICES,SCIENCE,University Of Exeter,484517,6250,142047795
BEIS,Met Office,2023-10-31,11 SERVICES,SCIENCE,University Of Exeter,484518,6250,142047795
BEIS,Met Office,2023-10-13,11 SERVICES,PROGRAMMES,University Of Exeter,484589,74997.05,142047795
BEIS,Met Office,2023-10-20,11 SERVICES,PROGRAMMES,University Of Exeter,484768,165267,142047795
BEIS,Met Office,2023-10-30,11 SERVICES,MARKETS,University Of Exeter,484818,5000,142047795
BEIS,Met Office,2023-10-13,11 SERVICES,SCIENCE,University Of Leeds,483893,3587.49,613451470
BEIS,Met Office,2023-10-06,11 SERVICES,PROGRAMMES,University Of Leeds,484167,24925.82,613451470
BEIS,Met Office,2023-10-06,13 MISCELLANEOUS,SCIENCE,University Of Leeds,484322,500,613451470
BEIS,Met Office,2023-10-13,11 SERVICES,MARKETS,University Of Leeds,484582,12500,613451470
BEIS,Met Office,2023-10-17,13 MISCELLANEOUS,SCIENCE,University Of Leeds,484671,1000,613451470
BEIS,Met Office,2023-10-18,03 STAFF COSTS T&S,PROGRAMMES,University Of Leeds,484703,1358.64,613451470
BEIS,Met Office,2023-10-18,03 STAFF COSTS T&S,PROGRAMMES,University Of Leeds,484704,933.65,613451470
BEIS,Met Office,2023-10-30,13 MISCELLANEOUS,SCIENCE,University Of Leeds,484919,1000,613451470
BEIS,Met Office,2023-10-27,13 MISCELLANEOUS,SCIENCE,University Of Leeds,484967,1000,613451470
BEIS,Met Office,2023-10-30,13 MISCELLANEOUS,SCIENCE,University Of Leeds,485004,1000,613451470
BEIS,Met Office,2023-10-31,13 MISCELLANEOUS,SCIENCE,University Of Leeds,485031,1000,613451470
BEIS,Met Office,2023-10-31,13 MISCELLANEOUS,SCIENCE,University Of Leeds,485033,1000,613451470
BEIS,Met Office,2023-10-31,13 MISCELLANEOUS,SCIENCE,University Of Leeds,485043,1000,613451470
BEIS,Met Office,2023-10-31,13 MISCELLANEOUS,SCIENCE,University Of Leeds,485044,1000,613451470
BEIS,Met Office,2023-10-31,13 MISCELLANEOUS,SCIENCE,University Of Leeds,485070,1000,613451470
BEIS,Met Office,2023-10-04,11 SERVICES,PROGRAMMES,University Of Oxford,484131,10000,125506730
BEIS,Met Office,2023-10-31,11 SERVICES,SCIENCE,University Of Oxford,484168,12500,125506730
BEIS,Met Office,2023-10-20,13 MISCELLANEOUS,SCIENCE,University Of Reading,474398,1000,200012659
BEIS,Met Office,2023-10-04,13 MISCELLANEOUS,SCIENCE,University Of Reading,484202,1000,200012659
BEIS,Met Office,2023-10-20,13 MISCELLANEOUS,SCIENCE,University Of Reading,484203,1000,200012659
BEIS,Met Office,2023-10-20,13 MISCELLANEOUS,SCIENCE,University Of Reading,484614,-1000,200012659
BEIS,Met Office,2023-10-06,11 SERVICES,SERVICES,University Of York,484200,4633.2,647200541
BEIS,Met Office,2023-10-04,STOCK,SERVICES,VAISALA LTD,25179,0,336100011
BEIS,Met Office,2023-10-04,TRADE CREDITORS,SERVICES,VAISALA LTD,25179,54285.07,336100011
BEIS,Met Office,2023-10-11,STOCK,SERVICES,VAISALA LTD,25189,0,336100011
BEIS,Met Office,2023-10-11,TRADE CREDITORS,SERVICES,VAISALA LTD,25189,13356.69,336100011
BEIS,Met Office,2023-10-18,11 SERVICES,SERVICES,VAISALA LTD,484666,10793.5,336100011
BEIS,Met Office,2023-10-04,13 MISCELLANEOUS,CHIEF FINANCIAL OFFICER,VICKERY HOLMAN,484219,436.38,943875678
BEIS,Met Office,2023-10-31,11 SERVICES,SERVICES,VOLKSWAGEN GROUP LEASING,484989,134.61,BG745963883
BEIS,Met Office,2023-10-31,11 SERVICES,SERVICES,VOLKSWAGEN GROUP LEASING,484990,155.15,BG745963883
BEIS,Met Office,2023-10-31,11 SERVICES,SERVICES,VOLKSWAGEN GROUP LEASING,484991,131.05,BG745963883
BEIS,Met Office,2023-10-31,11 SERVICES,SERVICES,VOLKSWAGEN GROUP LEASING,484992,134.77,BG745963883
BEIS,Met Office,2023-10-31,11 SERVICES,SERVICES,VOLKSWAGEN GROUP LEASING,484993,230.85,BG745963883
BEIS,Met Office,2023-10-31,11 SERVICES,SERVICES,VOLKSWAGEN GROUP LEASING,484994,199.82,BG745963883
BEIS,Met Office,2023-10-31,11 SERVICES,SERVICES,VOLKSWAGEN GROUP LEASING,484995,195.57,BG745963883
BEIS,Met Office,2023-10-31,11 SERVICES,SERVICES,VOLKSWAGEN GROUP LEASING,484996,248.12,BG745963883
BEIS,Met Office,2023-10-31,11 SERVICES,SERVICES,VOLKSWAGEN GROUP LEASING,484997,290.06,BG745963883
BEIS,Met Office,2023-10-31,11 SERVICES,SERVICES,VOLKSWAGEN GROUP LEASING,484998,260.65,BG745963883
BEIS,Met Office,2023-10-31,11 SERVICES,SERVICES,VOLKSWAGEN GROUP LEASING,484999,160.02,BG745963883
BEIS,Met Office,2023-10-31,11 SERVICES,SERVICES,VOLKSWAGEN GROUP LEASING,485000,213.27,BG745963883
BEIS,Met Office,2023-10-31,11 SERVICES,SERVICES,VOLKSWAGEN GROUP LEASING,485001,289.9,BG745963883
BEIS,Met Office,2023-10-31,11 SERVICES,SERVICES,VOLKSWAGEN GROUP LEASING,485002,260.26,BG745963883
BEIS,Met Office,2023-10-04,06 ACCOMMODATION,CHIEF FINANCIAL OFFICER,WARWICKSHIRE COLLEGE,484189,631.77,585279590
BEIS,Met Office,2023-10-02,11 SERVICES,CHIEF FINANCIAL OFFICER,WEBEX COMMUNICATIONS UK LTD,484004,209.92,815974302
BEIS,Met Office,2023-10-30,11 SERVICES,CHIEF FINANCIAL OFFICER,WEBEX COMMUNICATIONS UK LTD,484988,209.92,815974302
BEIS,Met Office,2023-10-26,07 EQUIPMENT,TECHNOLOGY AND CIO,WESTERMO DATA COMMUNICATIONS LTD,484871,3098.25,656570708
BEIS,Met Office,2023-10-26,13 MISCELLANEOUS,TECHNOLOGY AND CIO,WESTERMO DATA COMMUNICATIONS LTD,484871,12.5,656570708
BEIS,Met Office,2023-10-18,11 SERVICES,MARKETS,WESTPOINT CENTRE (DEVON) LTD,484615,5408.25,585 6015 25
BEIS,Met Office,2023-10-04,11 SERVICES,TECHNOLOGY AND CIO,WIREFAST LTD,484098,1147.75,749536001
BEIS,Met Office,2023-10-04,11 SERVICES,TECHNOLOGY AND CIO,WIREFAST LTD,484099,1632.12,749536001
BEIS,Met Office,2023-10-04,11 SERVICES,TECHNOLOGY AND CIO,WIREFAST LTD,484100,1767.76,749536001
BEIS,Met Office,2023-10-04,11 SERVICES,CHIEF FINANCIAL OFFICER,WOMBLE BOND DICKINSON (UK) LLP,484083,5712,GB123393627
BEIS,Met Office,2023-10-04,11 SERVICES,CHIEF FINANCIAL OFFICER,WOMBLE BOND DICKINSON (UK) LLP,484084,14025,GB123393627
BEIS,Met Office,2023-10-26,11 SERVICES,MARKETS,WORLDPAY (UK) LTD,484853,58.64,991280207
BEIS,Met Office,2023-10-26,11 SERVICES,MARKETS,WORLDPAY (UK) LTD,484854,45.39,991280207
BEIS,Met Office,2023-10-26,11 SERVICES,MARKETS,WORLDPAY (UK) LTD,484855,61.69,991280207
BEIS,Met Office,2023-10-26,11 SERVICES,MARKETS,WORLDPAY (UK) LTD,484856,48.25,991280207
BEIS,Met Office,2023-10-26,11 SERVICES,MARKETS,WORLDPAY (UK) LTD,484857,73.27,991280207
BEIS,Met Office,2023-10-26,11 SERVICES,MARKETS,WORLDPAY (UK) LTD,484858,69.96,991280207
BEIS,Met Office,2023-10-26,11 SERVICES,MARKETS,WORLDPAY (UK) LTD,484859,65.84,991280207
BEIS,Met Office,2023-10-26,11 SERVICES,MARKETS,WORLDPAY (UK) LTD,484860,69.63,991280207
BEIS,Met Office,2023-10-26,11 SERVICES,MARKETS,WORLDPAY (UK) LTD,484861,54.79,991280207
BEIS,Met Office,2023-10-26,11 SERVICES,MARKETS,WORLDPAY (UK) LTD,484862,84.55,991280207
BEIS,Met Office,2023-10-04,11 SERVICES,MARKETS,WORLDPAY LTD,484110,29.95,991280207
BEIS,Met Office,2023-10-12,11 SERVICES,MARKETS,WORLDPAY LTD,484537,542.61,991280207
BEIS,Met Office,2023-10-06,11 SERVICES,TECHNOLOGY AND CIO,WT CONSULTANCY (SW) LTD,484183,700,223 4662 25
BEIS,Met Office,2023-10-10,13 MISCELLANEOUS,PEOPLE,YOTI LTD,484228,15.3,GB199947617
BEIS,Met Office,2023-10-06,11 SERVICES,MARKETS,YOUGOV PLC,484105,16600,991228109
BEIS,Met Office,2023-10-06,10 EQUIPMENT MAINTENANCE,SERVICES,YOUNG CALIBRATION LIMITED,484299,1960,673900720
BEIS,Met Office,2023-10-06,13 MISCELLANEOUS,SERVICES,YOUNG CALIBRATION LIMITED,484299,15,673900720
